Cogmind - Beta 16 @@@ ROGUE MODE // 2025.11.06 @ 01:44:43 Player: Wyvric Result: Escaped singularity! Performance ------------- Evolutions (9) 4500 Regions Visited (27) 5400 Robots Destroyed (537) 2685 Value Destroyed (33847) 33847 Prototype IDs (177) 3540 Alien Tech Used (8) 1600 Bonus (101748) 101748 TOTAL SCORE: 153320 Bonus ------- Triggered High Security 500 High Alert Combat Kills 20708 Follower Combat Kills 2078 Forged Quantum Companion 2000 Network Hubs Disabled 600 Registered with UFD 300 Met Optimus in HQ 500 Met Data Miner 300 Built Enhanced Grunts 300 A7 Reached Mainframe 300 Met R17 at Cetus 500 Found Hidden Lab 3000 Met R17 at Research 2000 Scanned by Researcher 500 Destroyed Superfortress 15000 Met Optimus at Protoforge 1000 Executed Drillbomb Mission 10000 Optimus Survived to 0b1 3000 Destroyed MAIN.C Guards 500 Met MAIN.C 5000 Destroyed MAIN.C Shell 5000 Destroyed MAIN.C 10000 Met Architect 300 Destroyed A5 500 Destroyed Architect 15000 Win 3000 Friendly Fire -138 Cogmind --------- Core Integrity 528/1600 Matter 295/300 Energy 78/480 System Corruption 2% Temperature Cool (20) Movement Hovering (23) Location Near Former Tau Ceti IV Parts ------- > --- POWER (2) -------- Graviton Reactor Zero-point Reactor > --- PROPULSION (8) --- Improved Linear Gravjet Cooled Antigrav System Cooled Antigrav System Cooled Antigrav System Cooled Antigrav System Cooled Antigrav System Gravjet Array > --- UTILITY (13) ----- Concept Antigrav Storage Unit Concept Weapon Articulator Experimental Core Analyzer Experimental Core Analyzer Experimental Armor Integrity Analyzer Nanoactuators Experimental Reaction Control System Experimental Phase Shifter Centrium Medium Armor Plating Centrium Medium Armor Plating Graphene Brace Advanced Force Field > --- WEAPON (2) ------- Superquantum Companion > --- INVENTORY (25) --- Light Quantum Reactor Zero-point Reactor Cooled Antigrav System Cooled Antigrav System Combat Antigrav System Combat Antigrav System Experimental Gyrokinetic Inverter Combat Linear Gravjet Combat Linear Gravjet Combat Linear Gravjet Concept Combat Aerolev Unit Concept Gyrokinetic System Experimental Power Amplifier Advanced Cooling System Advanced Coolant Injector High-capacity Storage Unit Gravity Neutralizer Concept Weapon Articulator Improved Armor Integrity Analyzer Advanced Reaction Control System Experimental Reaction Control System Advanced Phase Shifter Advanced Phase Shifter Advanced Shield Generator Advanced Shield Generator Peak State ------------ > --- POWER ------------ Concept Zero-point Core Concept Zero-point Core > --- PROPULSION ------- Combat Linear Gravjet Experimental Antigrav System Gravjet Array Gravjet Array Concept Combat Aerolev Unit Concept Combat Aerolev Unit > --- UTILITY ---------- Concept Antigrav Storage Unit Experimental Optical Array Concept Weapon Articulator Experimental Weapon Cycler Concept Phase Shift Module Concept Cloak Mesh SHELL Armor Experimental Force Field Crosscalibrator > --- WEAPON ----------- Concept Plasma Driver Superquantum Companion > --- INVENTORY -------- Hybrid Graviton Reactor Matter Drive Gravjet Array Gravjet Array Concept Combat Aerolev Unit Concept Chromion Battery Concept NT7 Matterbank Concept NT7 Matterbank Long-range IFF Parser Concept Weapon Articulator Experimental Core Analyzer Experimental Armor Integrity Analyzer Nanoactuators Concept Core Shell Experimental Weapon Shielding Experimental Weapon Shielding Experimental Force Field Concept Impact Drone Bay Transdimensional Reconstructor Concept Rapid Grenade Launcher Concept Rapid Grenade Launcher Concept Rapid Grenade Launcher Concept Arcsight Missile Launcher [Rating: 273] Favorites ----------- Power Micro Fission Core Engine Light Ion Engine Power Core Micro Fission Core Reactor Zero-point Reactor Propulsion Combat Linear Gravjet Treads Light Treads Leg Carbon-fiber Leg Wheel Compact Wheel Hover Unit Combat Linear Gravjet Flight Unit Cooled VTOL Module Utility Advanced Melee Analysis Suite Device Nanoactuators Storage Large Storage Unit Processor Advanced Melee Analysis Suite Hackware Advanced Hacking Suite Protection Enhanced Scrap Shield Artifact Phase Armor Weapon Superquantum Companion Energy Gun EM Pulse Gun Energy Cannon Concept Plasma Driver Ballistic Gun Subdweller Machine Gun Ballistic Cannon Concept Helical Railcannon Launcher Concept Arcsight Missile Launcher Special Weapon CPS Tube Slashing Weapon Superquantum Companion Piercing Weapon Force Lance Special Melee Weapon Datajack Build | -11 -10 -10 -10 -9 -6 -6 -6 -6 -6 -6 -5 -5 -5 -5 -5 -5 -4 -4 -4 -3 -3 -2 -2 -2 -1 -1 -1 ------- Run | Yrd Mat Min Sub Scr Fac Was Fac Low Low Dat Pro Fac Ext Cet Arc Hub Fac Arm Lab Res Qua Res Tes Frg Acc Com Ac0 Slots Evolved 18 | . . . . . 8 . . . . . . 2 . . . . 2 . . 2 . 2 . . 2 . . Power 1 | . . . . . . . . . . . . . . . . . . . . 1 . . . . . . . Propulsion 6 | . . . . . 4 . . . . . . . . . . . . . . 1 . 1 . . . . . Utility 11 | . . . . . 4 . . . . . . 2 . . . . 2 . . . . 1 . . 2 . . Weapon . | . . . . . . . . . . . . . . . . . . . . . . . . . . . . Parts Attached 412 | 6 8 2 4 9 37 1 9 1 1 . . 11 4 2 2 2 23 47 11 16 9 12 9 93 5 78 10 Power 52 | 1 . . 1 2 3 . 1 . . . . 2 1 . . . 3 7 2 5 1 3 1 10 . 8 1 Engine 5 | 1 . . 1 1 2 . . . . . . . . . . . . . . . . . . . . . . Core 13 | . . . . 1 1 . 1 . . . . 2 1 . . . 1 2 1 . . . . 3 . . . Reactor 34 | . . . . . . . . . . . . . . . . . 2 5 1 5 1 3 1 7 . 8 1 Propulsion 108 | 2 2 . . 1 14 . 3 . . . . 1 . 1 . 1 5 18 5 2 . . . 16 . 31 6 Treads 4 | 2 . . . . 2 . . . . . . . . . . . . . . . . . . . . . . Leg 2 | . . . . . 1 . . . . . . . . . . . . 1 . . . . . . . . . Wheel 7 | . 2 . . 1 4 . . . . . . . . . . . . . . . . . . . . . . Hover 57 | . . . . . 1 . . . . . . . . . . . . 6 4 2 . . . 16 . 22 6 Flight 38 | . . . . . 6 . 3 . . . . 1 . 1 . 1 5 11 1 . . . . . . 9 . Utility 208 | 1 3 1 . 2 15 1 5 1 . . . 8 1 1 2 1 15 17 2 7 6 9 7 57 5 38 3 Device 117 | . 1 1 . 1 8 1 1 . . . . 5 1 . 1 . 8 7 1 4 2 6 3 37 1 26 2 Storage 14 | 1 1 . . 1 . . 1 . . . . 1 . . . . 2 1 . 1 . 1 1 2 . 1 . Processor 38 | . . . . . 5 . . . . . . 2 . 1 . . 2 3 . 1 1 2 . 10 3 7 1 Hackware 9 | . . . . . . . 1 . . . . . . . 1 . 2 2 . 1 1 . . . 1 . . Protection 29 | . 1 . . . 2 . 2 1 . . . . . . . 1 1 4 1 . 1 . 3 8 . 4 . Artifact 1 | . . . . . . . . . . . . . . . . . . . . . 1 . . . . . . Weapon 44 | 2 3 1 3 4 5 . . . 1 . . . 2 . . . . 5 2 2 2 . 1 10 . 1 . Energy Gun 8 | 1 2 1 . . . . . . . . . . . . . . . . 1 . . . . 3 . . . Energy Cannon 10 | . 1 . 2 1 . . . . . . . . . . . . . . 1 . 1 . 1 2 . 1 . Ballistic Gun 3 | 1 . . 1 1 . . . . . . . . . . . . . . . . . . . . . . . Ballistic Cannon 2 | . . . . . . . . . . . . . . . . . . . . 1 . . . 1 . . . Launcher 7 | . . . . . 2 . . . 1 . . . . . . . . 2 . . . . . 2 . . . Special Weapon 4 | . . . . 1 2 . . . . . . . 1 . . . . . . . . . . . . . . Impact Weapon . | . . . . . . . . . . . . . . . . . . . . . . . . . . . . Slashing Weapon 8 | . . . . . 1 . . . . . . . 1 . . . . 2 . 1 1 . . 2 . . . Piercing Weapon 1 | . . . . . . . . . . . . . . . . . . 1 . . . . . . . . . Special Melee Weapon 1 | . . . . 1 . . . . . . . . . . . . . . . . . . . . . . . Unidentified Prototypes 39 | . . . . . 1 . . . . . . . . . . . . 1 3 . 3 . 1 23 . 1 6 Corrupted Parts 4 | . . . . . . . . . . . . . . . . . . . . . . . . . . 4 . System Corruption 19 | . . . . . . . . . . . . . . . . . . . . . . . . . . 19 . Parts Lost 90 | . 1 1 . . 9 . 1 . . . . 4 1 . . 5 5 17 . 1 2 . . 26 2 14 1 Power 9 | . . . . . 2 . . . . . . . . . . . 1 3 . . . . . 2 . 1 . Propulsion 24 | . . . . . 2 . . . . . . 1 1 . . 2 2 5 . . . . . 4 . 7 . Utility 47 | . . . . . 4 . 1 . . . . 2 . . . 3 2 7 . 1 2 . . 17 2 5 1 Weapon 10 | . 1 1 . . 1 . . . . . . 1 . . . . . 2 . . . . . 3 . 1 . Highest Loss Streak 13 | . 1 1 . . 5 . 1 . . . . 4 1 . . 5 3 5 . 1 1 . . 5 1 13 1 To Critical Strikes . | . . . . . . . . . . . . . . . . . . . . . . . . . . . . Average Backups 14 | 3 10 14 13 13 11 5 5 7 8 8 8 8 9 9 10 9 10 15 15 15 14 14 15 21 21 19 24 Power . | . 1 1 1 1 . . . . . . . . 1 . . . 1 1 1 1 1 1 . . . 1 2 Propulsion 2 | 2 3 2 2 1 1 . . 2 2 2 2 1 1 2 2 1 3 9 5 1 1 . . 3 8 3 8 Utility 7 | . 1 2 3 5 1 2 3 3 4 4 4 4 4 4 6 5 4 3 6 8 7 8 10 12 8 10 13 Weapon 2 | . 3 9 6 4 2 1 . . 1 1 . . 1 1 1 1 1 . . 1 2 1 1 2 3 1 . Tool/Special . | . . . . . . . . . . . . . . . . . . . . . . . . . . . . Unused Backups 176 | . 3 . 2 9 14 2 4 . . . . 3 1 2 1 1 5 5 2 7 10 1 3 27 2 61 11 Power 16 | . 1 . . 2 1 . . . . . . . . 1 . . 1 1 . 1 1 . . 1 . 4 2 Propulsion 37 | . 2 . . 1 3 . . . . . . . . . . . 2 1 1 . . . . 3 . 22 2 Utility 89 | . . . . 3 4 1 3 . . . . 3 1 1 1 1 2 3 . 6 4 1 3 21 2 22 7 Weapon 30 | . . . 2 3 3 1 1 . . . . . . . . . . . 1 . 4 . . 2 . 13 . Tool/Special 4 | . . . . . 3 . . . . . . . . . . . . . . . 1 . . . . . . Average Slot Usage (%) 88 | . 95 100 100 95 81 100 98 93 93 93 93 88 93 94 94 93 80 91 88 99 99 91 92 81 79 75 91 Engine 1 | . 14 14 14 5 3 . . . . . . . . . . . . . . . . . . . . . . Core 2 | . . . . 8 2 6 6 6 6 6 6 5 5 5 5 5 2 1 . . . . . 1 4 . . Reactor 3 | . . . . . . . . . . . . . . . . . 2 3 4 8 9 7 8 5 4 6 8 Treads 2 | . 25 25 28 . 5 . . . . . . . . . . . . . . . . . . . . . . Wheel 2 | . 2 2 . 23 10 . . . . . . . . . . . . . . . . . . . . . . Hover 12 | . . . . . . . . . . . . . . . . . . 7 12 33 33 34 34 26 20 20 28 Flight 11 | . . . . . 14 40 40 40 40 40 40 35 34 35 35 35 23 19 18 . . . . . . 3 . Device 15 | . . 2 14 14 13 13 11 6 6 6 6 8 17 15 6 5 19 18 15 14 16 20 21 18 21 21 31 Storage 6 | . 14 14 14 14 3 . 1 6 6 6 6 5 5 5 5 5 5 5 5 4 4 4 4 4 4 5 4 Processor 9 | . . . . . 11 20 18 13 13 13 13 15 11 12 17 16 11 18 10 9 9 10 13 7 8 10 8 Hackware 1 | . . . . . . . . . . . . . . . 4 4 6 5 10 13 11 3 . . 1 . . Protection 4 | . 10 11 . . 3 6 7 6 6 6 6 7 5 5 5 5 2 1 3 3 3 . 1 7 8 1 8 Energy Gun 2 | . 14 28 21 . . . . . . . . . . . . . . . . . . . . . . . . Ballistic Gun 1 | . 13 . 1 12 . . . . . . . . . . . . . . . . . . . . . . . Special Weapon 1 | . . . . 1 . 6 4 5 5 6 5 1 2 1 5 5 . . . . . . . . . . . Slashing Weapon 4 | . . . . . 5 6 6 6 6 6 6 5 7 9 5 5 5 7 5 7 4 4 4 4 4 4 4 Special Melee Weapon 1 | . . . . 12 . . . . . . . . . . . . . . . . . . . . . . . Peak Build Rating 273 | 6 8 10 11 30 75 78 80 76 77 76 77 85 89 91 92 93 115 147 144 174 177 202 203 273 269 269 247 Average Rating 130 | 4 7 8 9 18 53 77 77 75 76 76 76 81 87 88 91 91 94 122 121 170 170 192 193 246 266 197 239 On Entrance 102 | . 6 8 10 10 28 75 78 71 76 76 76 76 82 89 89 92 65 112 144 131 172 175 191 180 260 268 230 Avg Prop Armor Cover (%) 9 | . . . . . 12 . . . . . . 5 5 5 . . . 10 2 . . 1 . . . 2 . Naked Turns . | . . . . . . . . . . . . . . . . . . . . . . . . . . . . Heaviest Build 138 | 12 28 28 31 58 66 29 37 38 35 35 42 37 41 41 36 43 50 138 138 94 102 118 125 129 123 127 105 Greatest Support 147 | 40 40 40 40 40 76 42 42 38 36 36 36 45 51 43 45 51 55 84 84 105 105 120 120 126 124 124 147 Greatest Overweight (x) 5 | . 1 1 . 2 4 . . . . . 1 3 3 3 2 . 3 3 2 . . . 1 1 . 5 . Average Overweight (x) . | . . . . 1 . . . . . . . . . . . . . . . . . . . . . . . Largest Inventory Capacity 25 | 8 15 15 15 20 20 5 8 8 8 8 8 10 10 10 10 10 15 25 25 25 15 15 20 25 25 25 25 Average Capacity 17 | 6 12 15 15 16 14 5 5 8 8 8 8 8 10 10 10 10 15 15 20 15 15 15 17 23 25 25 25 Most Carried 25 | 8 15 15 15 20 20 5 8 8 8 8 8 10 10 10 10 10 15 24 25 24 15 15 17 25 25 25 25 Average Carried 15 | 4 10 14 14 15 13 4 5 7 8 8 8 8 9 9 9 9 11 15 15 14 14 14 15 22 24 19 24 Final Capacity 25 | 8 15 15 15 20 5 5 8 8 8 8 8 10 10 10 10 10 15 25 25 15 15 15 20 25 25 25 25 Final Carried 25 | 8 14 14 15 20 5 5 8 8 8 8 8 10 10 10 10 5 15 24 25 15 15 15 17 25 25 25 25 Scrap Suit Usage (%) 1 | . . . . . . . . . . . . . . . . . . . . . . . . 1 . . . Class Distribution -------------------- 32% | Mutant 14% | Scavenger-Sprinter 13% | Sprinter 10% | Scavenger-Mutant 6% | Commander-Sprinter 3% | Hacker-Gladiator 3% | Scout Dominant Class ---------------- Mutant | -10/Materials Mutant | -10/Mines Mutant | -10/Subcaves Mutant | -9/Scraptown Derelict-Mutant | -6/Factory Scout | -6/Waste Scout | -6/Factory Sprinter | -6/Lower Caves Sprinter | -6/Lower Caves Sprinter | -6/Data Miner Sprinter | -5/Proximity Caves Sprinter | -5/Factory Commander-Sprinter | -5/Extension Commander-Gladiator | -5/Cetus Commander-Sprinter | -5/Archives Commander-Sprinter | -5/Hub_04(d) Hacker-Sprinter | -4/Factory Sprinter | -4/Armory Sprinter | -4/Lab Hacker-Gladiator | -3/Research Scientist-Mutant | -3/Quarantine Mutant | -2/Research Scavenger-Mutant | -2/Testing Scavenger-Sprinter | -2/Protoforge Scavenger-Sprinter | -1/Access Scavenger-Mutant | -1/Command Sprinter | -1/Access_0 Resources | -11 -10 -10 -10 -9 -6 -6 -6 -6 -6 -6 -5 -5 -5 -5 -5 -5 -4 -4 -4 -3 -3 -2 -2 -2 -1 -1 -1 ----------- Run | Yrd Mat Min Sub Scr Fac Was Fac Low Low Dat Pro Fac Ext Cet Arc Hub Fac Arm Lab Res Qua Res Tes Frg Acc Com Ac0 Matter Collected 19439 | 275 60 208 40 86 353 . 167 90 100 . 60 498 190 96 49 . 252 1264 . 400 85 160 145 13770 410 581 100 Remotely . | . . . . . . . . . . . . . . . . . . . . . . . . . . . . Salvage Created 25925 | 113 159 315 . . 694 . 230 252 88 . 194 645 908 . 111 81 198 1623 . 1032 544 1720 1242 11880 938 2503 455 Parts 1053 | 5 11 32 . . 24 . 7 5 10 . 1 38 33 . 11 2 11 90 . 41 28 54 59 443 48 74 26 Haulers Intercepted 3 | . . . . . . . . . . . . . . . . . . . . 2 . 1 . . . . . Recyclers Shooed 4 | . . . . . 2 . . . . . . . . . . . . . . . . . 2 . . . . Parts Field Recycled 15 | . . . . . . . . . . . . . . . . . . 15 . . . . . . . . . Retrieved Matter 309 | . . . . . . . . . . . . . . . . . . 309 . . . . . . . . . Parts Self-Destructed 14 | . . . 4 . . . . 2 7 . 1 . . . . . . . . . . . . . . . . Prevented . | . . . . . . . . . . . . . . . . . . . . . . . . . . . . Parts Restored 15 | . . . . . . . . . . . . . . . . . . . . . . . . 15 . . . Faulty 15 | . . . . . . . . . . . . . . . . . . . . . . . . 15 . . . Kills | -11 -10 -10 -10 -9 -6 -6 -6 -6 -6 -6 -5 -5 -5 -5 -5 -5 -4 -4 -4 -3 -3 -2 -2 -2 -1 -1 -1 ------- Run | Yrd Mat Min Sub Scr Fac Was Fac Low Low Dat Pro Fac Ext Cet Arc Hub Fac Arm Lab Res Qua Res Tes Frg Acc Com Ac0 Combat Hostiles Destroyed 436 | . 7 13 . . 7 . . . 7 . 6 7 11 . . 1 1 29 . 10 4 20 11 263 16 20 3 Melee 192 | . . . . . 7 . . . . . . 3 11 . . 1 1 23 . 9 2 18 11 75 13 16 2 Guns 18 | . 7 11 . . . . . . . . . . . . . . . . . . . . . . . . . Cannons 17 | . . . . . . . . . . . . . . . . . . . . . 1 . . 13 1 1 1 AOE 198 | . . 2 . . . . . . 7 . 6 4 . . . . . 6 . . . . . 171 . 2 . Classes Destroyed 28 | 2 3 1 . . 3 . 1 . . . 1 . 2 . . . . 5 . 1 2 . . 7 . . . Worker 16 | . . . . . 2 . 1 . . . . 6 . . . . . . . 2 2 . . 3 . . . Builder 7 | . . . . . . . . . . . . . . . . . . . . . 2 . 2 3 . . . Tunneler 6 | 2 . 1 . . . . . . . . . . . . . . . . . 3 . . . . . . . Hauler 3 | . . . . . . . . . . . . . . . . . . . . 2 . 1 . . . . . Recycler 12 | 1 . . . . 3 . 1 . . . . 1 1 . . . 1 . . . . 1 2 . . 1 . Mechanic 13 | . . . . . . . . . . . . . . . . . . 1 . . . . . 12 . . . Operator 8 | . . . . . . . 1 . . . . . 1 . 3 . 1 . . . 1 . . 1 . . . Drone 11 | . . . . . . . . . . . . . . . . . . . . . . . . 11 . . . Watcher 27 | . 1 . . . . . 1 . . . . 6 1 . . 1 1 2 . 1 2 . 2 4 1 4 . Swarmer 80 | . 6 10 . . 4 . . . 7 . . 4 . . . . 1 6 . . . 5 . 29 8 . . Cutter 6 | . . . . . . . . . . . . . . . . . . . . . . . . . . 6 . Saboteur 9 | . . . . . . . . . . . . . . . . . . 1 . . . . . 8 . . . Grunt 95 | . 1 2 . . 1 . . . . . 5 1 8 . . . . . . 8 . 5 8 49 4 3 . Brawler 16 | . . . . . . . . . . . 1 . . . . . . . . . . . . 15 . . . Duelist 18 | . . . . . 1 . . . . . . . . . . . . 3 . . . . . 14 . . . Protector 12 | . . . . . . . . . . . . . . . . . . 1 . . . . . 11 . . . Researcher 8 | . . . . . . . . . . . . . . . . . . . . . 1 . . 7 . . . Sentry 27 | . . . . . . . . . . . . . 1 . . 1 . 3 . . . 5 . 13 2 2 . Specialist 7 | . . . . . . . . . . . . . . . . . . 3 . . 3 . . 1 . . . Hunter 34 | . . . . . . . . . . . . . . . . . . 2 . 2 . 3 . 24 . 3 . Programmer 42 | . . . . . 1 . . . . . . 2 . . . . . 11 . . 1 2 3 18 2 2 . Q-Series 1 | . . . . . . . . . . . . . . . . . . . . . . . . 1 . . . Behemoth 3 | . . . . . . . . . . . . . 2 . . . . . . . . . . . . 1 . Enhanced Grunt 1 | . . . . . . . . . . . . . . . . . . . . . . . . . . . 1 Hotshot 6 | . . . . . . . . . . . . . . . . . . . . . . . . 6 . . . Decapitator 11 | . . . . . . . . . . . . . . . . . . . . . . . . 11 . . . Immortal 6 | . . . . . . . . . . . . . . . . . . . . . . . . 6 . . . Combat Programmer 2 | . . . . . . . . . . . . . . . . . . . . . . . . . . 2 . Striker 13 | . . . . . . . . . . . . . . . . . . . . . . . . 13 . . . Executioner 26 | . . . . . . . . . . . . . . . . . . . . . . . . 26 . . . Alpha 7 3 | . . . . . . . . . . . . . . . . . . . . . . . . 3 . . . V-Series 3 | . . . . . . . . . . . . . . . . . . . . . . . . 3 . . . Assembled 1 | . . 1 . . . . . . . . . . . . . . . . . . . . . . . . . Thug 1 | . . 1 . . . . . . . . . . . . . . . . . . . . . . . . . Best Kill Streak 24 | 3 3 3 . . 3 . 1 . 4 . 3 5 3 . 2 1 3 7 . 9 3 10 4 24 6 10 1 Combat Bots Only 22 | . 3 3 . . 3 . . . 4 . 3 3 3 . . 1 1 7 . 6 3 10 4 22 6 10 1 Max Kills in Single Turn 7 | 1 1 2 . . 1 . 1 . 3 . 2 3 1 . 1 1 1 3 . 1 1 2 1 7 2 2 1 Gunslinging 1 | . . 1 . . . . . . . . . . . . . . . . . . . . . . . . . Exploded 6 | . . 1 . . . . . . 3 . 2 3 . . . . . 3 . . . . . 6 . 2 . Melee 2 | . . . . . 1 . . . . . . 1 1 . . 1 1 1 . 1 1 2 1 2 2 1 1 Uniques/NPCs Destroyed 4 | . . . . . . . . . . . . . . . . . . . . . . . . 1 . 1 2 Superfortress (-2/Protoforge) MAIN.C Shell (-1/Command) A5 (-1/Access_0) Architect (-1/Access_0) Combat | -11 -10 -10 -10 -9 -6 -6 -6 -6 -6 -6 -5 -5 -5 -5 -5 -5 -4 -4 -4 -3 -3 -2 -2 -2 -1 -1 -1 -------- Run | Yrd Mat Min Sub Scr Fac Was Fac Low Low Dat Pro Fac Ext Cet Arc Hub Fac Arm Lab Res Qua Res Tes Frg Acc Com Ac0 Hostile Shots Fired 2513 | . 28 50 1 . 91 . . . 1 . . 38 53 6 7 31 86 464 . 100 68 73 35 794 72 274 241 Missed 1203 | . 2 12 1 . 24 . . . 1 . . 23 16 2 5 4 39 225 . 30 28 35 23 415 28 110 180 Intercepted 3 | . . . . . . . . . . . . . . . . . . . . . . . . 3 . . . Deflected 28 | . . . . . . . . . . . . . . . . . . . . 3 1 2 . 12 4 4 2 Hits 1310 | . 26 38 . . 67 . . . . . . 15 37 4 2 27 47 239 . 70 40 38 12 379 44 164 61 Melee 134 | . . . . . 5 . . . . . . . . . . 16 . 20 . . . . . 73 . 5 15 Projectile 1176 | . 26 38 . . 62 . . . . . . 15 37 4 2 11 47 219 . 70 40 38 12 306 44 159 46 AOE 43 | . 4 . . . 4 . . . . . . 1 . . . 2 . 5 . . . . . 7 . 19 1 Critical Strikes 110 | . . 2 . . 4 . . . . . . . 1 2 . 9 2 11 . 4 . 2 1 56 1 10 5 Actively Blocked 20 | . . . . . . . . . . . . . . . . . . 11 . . . . . 4 . . 5 Part Disruptions 9 | . . . . . . . . . . . . . . . . . . . . . . . . 1 . 8 . Actively Blocked 5 | . . . . . . . . . . . . . . . . . . . . . . . . . . 5 . Damage Taken 33133 | . 446 375 . . 1521 . 55 . . . 20 766 784 282 95 696 903 4340 . 1292 535 788 413 12904 467 5128 1323 Core 4766 | . 156 93 . . 287 . . . . . . 106 138 43 . 138 143 823 . 273 96 82 92 1354 49 633 260 Absorbed by Shields 5981 | . . . . . . . . . . . . . 186 25 . . . 35 . . 74 122 29 2215 484 2030 781 Redirected to Core 8 | . . . . . . . . . . . . . . . . . . . . . . . 8 . . . . Redirected to Shielding 1043 | . 28 15 . . . . . . . . . 118 . . . . . 101 . . . . . 610 30 90 51 Ignored by Resistances 446 | . . . . . . . . . . . . . . . . . . 156 . . . . . 290 . . . Regen/Repaired (Parts) 7733 | . . . . . . . 249 . . . . . . . . . 95 . . 587 10 . 55 5734 194 809 . Core Remaining (%) 44 | 100 . . . . . . . . . . 66 . . . . 57 . . 16 . 66 . . 19 . . 33 Volleys Fired 360 | 5 26 22 3 . 1 . . . 4 . 8 2 . . . . . 3 . 7 51 . 4 209 9 6 . Largest 2 | 2 2 2 1 . 1 . . . 1 . 1 1 . . . . . 1 . 1 1 . 1 1 1 1 . Hottest 140 | 70 70 80 30 . 80 . . . 43 . 43 43 . . . . . 52 . 100 113 . 120 140 140 140 . Shots Fired 404 | 10 52 44 3 . 1 . . . 4 . 8 2 . . . . . 3 . 7 51 . 4 199 10 6 . Gun 109 | 10 52 44 3 . . . . . . . . . . . . . . . . . . . . . . . . Cannon 114 | . . . . . 1 . . . . . . . . . . . . . . 7 51 . 4 36 10 5 . Launcher 181 | . . . . . . . . . 4 . 8 2 . . . . . 3 . . . . . 163 . 1 . Special . | . . . . . . . . . . . . . . . . . . . . . . . . . . . . Kinetic 45 | 5 26 . 3 . . . . . . . . . . . . . . . . 4 . . . 7 . . . Thermal 134 | 5 26 . . . 1 . . . . . . . . . . . . . . 3 51 . 4 29 10 5 . Explosive 181 | . . . . . . . . . 4 . 8 2 . . . . . 3 . . . . . 163 . 1 . Electromagnetic 44 | . . 44 . . . . . . . . . . . . . . . . . . . . . . . . . Robot Hit Streak 18 | 4 10 14 . . . . . . . . 3 4 . . . . . 5 . . 14 . . 18 . 12 . Robot Miss Streak 5 | 1 2 4 . . . . . . . . . . . . . . . . . . 1 . . 5 . 1 . Penetration Max . | . . . . . . . . . . . . . . . . . . . . . . . . . . . . Secondary Targets 3 | . . 3 . . . . . . . . . . . . . . . . . . . . . . . . . Max Gunslinging Chain 1 | . . 1 . . . . . . . . . . . . . . . . . . . . . . . . . Autonomous 48 | . . . . . . . . . . . . . . . . . . . . 3 . 2 . 28 3 4 8 Shots Hit Robots 1036 | 6 34 27 . . 25 . 8 6 . . 1 33 44 4 8 5 13 112 . 46 28 37 28 379 36 113 43 Core Hits 814 | 4 10 15 . . 12 . 2 2 8 . 13 17 17 1 3 2 5 46 . 17 12 22 15 506 16 49 20 Critical Kills 2 | . . . . . . . . . . . . . . . . . . . . . 2 . . . . . . Critical Parts Destroyed . | . . . . . . . . . . . . . . . . . . . . . . . . . . . . Critical Strikes 42 | . 3 . . . . . . . . . . . 2 . . 2 2 10 . . 2 . . 15 4 . 2 Burn 3 | . 3 . . . . . . . . . . . . . . . . . . . . . . . . . . Meltdown 2 | . . . . . . . . . . . . . . . . . . . . . 2 . . . . . . Sever 5 | . . . . . . . . . . . . . . . . . . 4 . . . . . 1 . . . Melee Attacks 1355 | . . . . . 53 . 67 6 5 . 3 75 51 4 8 9 55 178 18 87 45 43 49 359 48 142 50 Impact . | . . . . . . . . . . . . . . . . . . . . . . . . . . . . Slashing 1355 | . . . . . 53 . 67 6 5 . 3 75 51 4 8 9 55 178 18 87 45 43 49 359 48 142 50 Piercing . | . . . . . . . . . . . . . . . . . . . . . . . . . . . . Sneak Attacks 108 | . . . . . 5 . 2 . . . . 14 4 . 3 . 3 9 . 8 4 8 8 37 1 2 . Combat Hostiles 14 | . . . . . . . . . . . . 1 . . . . . 4 . 1 . 2 2 3 . 1 . Follow-up Attacks 48 | . . . . . . . . . . . . . 2 . . . . 15 . 2 . 2 . 14 5 2 6 Martial Strikes 30 | . . . . . . . . . . . . . . . . . . . . . . . . 30 . . . Damage Inflicted 136205 | 72 419 475 . . 1092 . 520 547 442 . 742 2439 2571 248 548 240 806 6489 . 3396 1942 3791 2671 88616 3010 11180 3949 Guns 803 | 72 419 312 . . . . . . . . . . . . . . . . . . . . . . . . . Cannons 5693 | . . . . . . . . . . . . . . . . . . . . 250 821 177 . 3156 228 346 715 Explosions 62303 | . . 159 . . . . . . 442 . 742 386 . . . . . 996 . . . . . 59336 . 242 . Melee 67402 | . . . . . 1092 . 520 547 . . . 2053 2571 248 548 240 806 5493 . 3146 1121 3614 2671 26124 2782 10592 3234 Ramming 4 | . . 4 . . . . . . . . . . . . . . . . . . . . . . . . . Kinetic 468 | 47 209 . . . . . . . . . . . . . . . . . . . . . . 212 . . . Thermal 1696 | 25 210 159 . . . . . . . . . . . . . . . . . . 821 . . 481 . . . Explosive 62144 | . . . . . . . . . 442 . 742 386 . . . . . 996 . . . . . 59336 . 242 . Electromagnetic 312 | . . 312 . . . . . . . . . . . . . . . . . . . . . . . . . Impact . | . . . . . . . . . . . . . . . . . . . . . . . . . . . . Slashing 67402 | . . . . . 1092 . 520 547 . . . 2053 2571 248 548 240 806 5493 . 3146 1121 3614 2671 26124 2782 10592 3234 Piercing . | . . . . . . . . . . . . . . . . . . . . . . . . . . . . Phasic 4179 | . . . . . . . . . . . . . . . . . . . . 250 . 177 . 2463 228 346 715 Highest Corruption 32 | . . . . . 1 . . . . . . 3 4 4 4 9 . 4 4 . 2 . . 32 1 9 2 Average Corruption 11 | . . . . . 1 . . . . . . 2 3 4 3 2 . 2 4 . 1 . . 25 1 3 2 Corruption Purged 31 | . . . . . 1 . . . . . . . . . 4 . . . . . 2 . . . . 24 . Corruption Blocked . | . . . . . . . . . . . . . . . . . . . . . . . . . . . . Effects 268 | . . . . . . . . . . . . 13 19 4 2 2 . 10 6 . 1 . . 187 2 21 1 Message Errors 55 | . . . . . . . . . . . . 3 1 3 1 1 . 1 2 . 1 . . 35 . 7 . Matter Fused 58 | . . . . . . . . . . . . 5 5 1 1 1 . . 1 . . . . 39 1 4 . Heat Flow Errors 28 | . . . . . . . . . . . . 1 3 . . . . 3 . . . . . 16 . 4 1 Energy Discharges 33 | . . . . . . . . . . . . . 2 . . . . 4 1 . . . . 23 . 3 . Parts Rejected 3 | . . . . . . . . . . . . 1 1 . . . . . . . . . . 1 . . . Parts Fused 6 | . . . . . . . . . . . . 1 1 . . . . . . . . . . 4 . . . Data Loss (minor) 33 | . . . . . . . . . . . . 2 5 . . . . 2 2 . . . . 21 . 1 . Data Loss (major) 10 | . . . . . . . . . . . . . 1 . . . . . . . . . . 8 . 1 . Misfires 2 | . . . . . . . . . . . . . . . . . . . . . . . . 1 1 . . Alerts 4 | . . . . . . . . . . . . . . . . . . . . . . . . 3 . 1 . Misdirections 25 | . . . . . . . . . . . . . . . . . . . . . . . . 25 . . . Weapon Failures 11 | . . . . . . . . . . . . . . . . . . . . . . . . 11 . . . Overload Shots . | . . . . . . . . . . . . . . . . . . . . . . . . . . . . Overflow Damage 9255 | . . . . . 72 . 163 243 . . 7 481 127 3 110 10 74 472 . 485 289 419 562 4625 279 629 205 Projectiles 265 | . . . . . . . . . . . . . . . . . . . . 16 74 16 . 128 . . 31 Explosions 2053 | . . . . . . . . . . . 7 15 . . . . . 172 . . . . . 1859 . . . Melee 6937 | . . . . . 72 . 163 243 . . . 466 127 3 110 10 74 300 . 469 215 403 562 2638 279 629 174 Knockbacks . | . . . . . . . . . . . . . . . . . . . . . . . . . . . . Impact . | . . . . . . . . . . . . . . . . . . . . . . . . . . . . Kinetic . | . . . . . . . . . . . . . . . . . . . . . . . . . . . . Secondary . | . . . . . . . . . . . . . . . . . . . . . . . . . . . . Self-Inflicted Damage 387 | . . 48 . . . . . . . . 21 . . . . . . 85 . . . . . 233 . . . Shots 10 | . . 2 . . . . . . . . 1 . . . . . . 2 . . . . . 5 . . . Rammed 2 | . . 2 . . . . . . . . . . . . . . . . . . . . . . . . . Targets Rammed 3 | . . 3 . . . . . . . . . . . . . . . . . . . . . . . . . Kicked . | . . . . . . . . . . . . . . . . . . . . . . . . . . . . Crushed 1 | . . 1 . . . . . . . . . . . . . . . . . . . . . . . . . Highest Temperature 419 | 18 81 172 . . 314 180 186 202 174 48 158 259 217 6 8 287 196 419 62 217 32 250 235 252 275 294 208 Average Temperature 52 | 9 19 56 . . 48 83 39 53 41 25 42 13 23 2 3 56 52 78 21 35 12 82 65 80 65 83 131 Received Heat Transfer 2569 | . 48 100 . . 249 . . . . . . 21 211 9 . 54 99 303 . 365 174 75 29 559 56 203 14 Effects 9 | . . . . . . . . . . . . . . . . . . 5 . . . . 3 1 . . . Energy Bleed 3 | . . . . . . . . . . . . . . . . . . 1 . . . . 1 1 . . . Interference 2 | . . . . . . . . . . . . . . . . . . . . . . . 2 . . . . Damage (major) 4 | . . . . . . . . . . . . . . . . . . 4 . . . . . . . . . Siege Activations . | . . . . . . . . . . . . . . . . . . . . . . . . . . . . Martial Activations . | . . . . . . . . . . . . . . . . . . . . . . . . . . . . Shielding Activations . | . . . . . . . . . . . . . . . . . . . . . . . . . . . . Robots Disrupted 8 | . . . . . . . . . . . . . . . . . . 2 . . . 1 . 4 1 . . Combat Hostiles 8 | . . . . . . . . . . . . . . . . . . 2 . . . 1 . 4 1 . . Robots Corrupted . | . . . . . . . . . . . . . . . . . . . . . . . . . . . . Combat Hostiles . | . . . . . . . . . . . . . . . . . . . . . . . . . . . . Parts Fried 2 | . . . . . 2 . . . . . . . . . . . . . . . . . . . . . . Impact Corruptions . | . . . . . . . . . . . . . . . . . . . . . . . . . . . . Robots Melted 2 | . . . . . . . . . . . . . . . . . . . . . 2 . . . . . . Combat Hostiles 1 | . . . . . . . . . . . . . . . . . . . . . 1 . . . . . . Parts Melted 6 | . . 1 . . . . . . . . . . . . . . . 1 . . 4 . . . . . . Heat Transferred 2170 | 74 851 300 . . . . . . . . . . . . . . . . . . 703 . . 242 . . . Parts Sabotaged 2 | . . . . . . . . . . . . . . . . . . 2 . . . . . . . . . Parts Stolen . | . . . . . . . . . . . . . . . . . . . . . . . . . . . . Parts Stripped 68 | . . . . . . . . . . . . . . . . . . . . 7 4 7 7 30 13 . . Power Chain Reactions 4 | . . 3 . . 1 . . . . . . . . . . . . . . . . . . . . . . Alert | -11 -10 -10 -10 -9 -6 -6 -6 -6 -6 -6 -5 -5 -5 -5 -5 -5 -4 -4 -4 -3 -3 -2 -2 -2 -1 -1 -1 ------- Run | Yrd Mat Min Sub Scr Fac Was Fac Low Low Dat Pro Fac Ext Cet Arc Hub Fac Arm Lab Res Qua Res Tes Frg Acc Com Ac0 Maximum Alert Level 5 | . . . . . . . . . . . . 1 2 1 1 2 1 4 . . 1 2 2 5 5 5 . Low Security (%) 40 | 100 100 100 . . 100 100 100 . . . . 36 38 . 93 17 19 54 . 100 95 60 . . . . . Level 1 14 | . . . . . . . . . . . . 63 18 99 6 73 80 19 . . 4 34 24 6 . . . Level 2 6 | . . . . . . . . . . . . . 42 . . 9 . 2 . . . 5 75 7 . . . Level 3 2 | . . . . . . . . . . . . . . . . . . 21 . . . . . 6 . . . Level 4 3 | . . . . . . . . . . . . . . . . . . 2 . . . . . 16 . . . Level 5 32 | . . . . . . . . . . . . . . . . . . . . . . . . 63 27 100 . High Security 1 | . . . . . . . . . . . . . . . . . . . . . . . . . 72 . . Max Security . | . . . . . . . . . . . . . . . . . . . . . . . . . . . . Peak Influence 8401 | 10 177 110 . . 135 41 195 . . . . 293 586 381 226 494 394 1144 . 156 204 494 616 8401 5493 4094 . Initial 5040 | . . 40 . . . 41 21 . . . . 56 81 277 108 . 241 71 . . . 96 277 297 5040 3515 . Average 951 | . 40 37 . . 57 36 123 . . . . 216 324 317 51 263 262 345 . 24 128 186 472 2834 5285 3884 . Influence Increases 20875 | 15 286 392 . . 443 . 499 5 160 . 140 730 893 353 228 724 758 2312 . 437 508 548 601 9382 513 825 123 Destroy 0b10 Robot/C 9280 | . 140 320 . . 140 . . . 140 . 120 140 400 160 80 160 20 720 . 200 100 400 220 5120 320 380 . Destroy 0b10 Robot/NC 600 | 15 5 5 . . 25 . 20 5 . . . 65 30 5 15 5 15 20 . 40 35 10 30 230 5 20 . Destroy Leader 1414 | . 22 40 . . 20 . 2 . 20 . 20 42 46 . . 32 2 156 . 36 4 102 24 698 62 86 . Allied During Kill 903 | . . 12 . . . . . . . . . . 364 165 95 140 . 89 . . . . . 38 . . . Trap Triggered on 0b10 30 | . . . . . . . . . . . . . . . . . 30 . . . . . . . . . . Successful Hack 1187 | . 28 . . . 23 . 109 . . . . 112 19 . . 30 153 206 . 48 136 21 45 74 12 171 . Select Force Hacks 210 | . 30 . . . 80 . . . . . . . . . . 100 . . . . . . . . . . . Disable Machine 1395 | . . . . . 30 . . . . . . . . 15 15 45 15 60 . 30 60 . 30 945 45 30 75 Anti-Garrison Action 150 | . . . . . . . . . . . . . . . . . . . . . . . . 150 . . . Destroy Structure 2436 | . 1 15 . . 20 . 53 . . . . 116 4 8 8 32 58 146 . 68 98 15 57 1602 69 63 3 Partial Spotted 645 | . . . . . 30 . 45 . . . . 120 15 . 15 45 75 90 . . 30 . 30 45 . 60 45 Lose Combat Pursuer 2625 | . 60 . . . 75 . 270 . . . . 135 15 . . 135 390 825 . 15 45 . 165 480 . 15 . Influence Decreases 20762 | 15 180 445 53 . 324 88 392 143 150 10 50 652 565 579 498 230 1105 1429 1030 437 335 227 567 1509 3421 2428 3900 Entered New Map 11860 | . . 66 29 . . 78 10 52 . 10 . 34 87 219 162 . 253 76 1030 . . 77 217 231 3361 1978 3890 Time Decay 5901 | 15 170 379 24 . 244 10 342 91 150 . 50 458 458 160 256 150 342 514 . 295 315 150 350 748 40 190 . Search Patrol Dispatched 500 | . . . . . . . . . . . . 100 . . . . 300 100 . . . . . . . . . Lost Part 880 | . 10 . . . 80 . 10 . . . . 40 10 . . 50 50 170 . 10 20 . . 260 20 140 10 Lost Ally 868 | . . . . . . . 30 . . . . 20 10 200 80 30 10 248 . . . . . 120 . 120 . Purge Threat 753 | . . . . . . . . . . . . . . . . . 150 321 . 132 . . . 150 . . . Squads Dispatched 122 | . 2 . . . 12 . 12 . . . . 13 1 . . 4 12 10 . 11 2 6 4 19 9 5 . Investigation 54 | . 1 . . . 9 . 9 . . . . 10 . . . 2 9 4 . 6 . 2 . 2 . . . Extermination 25 | . . . . . 3 . 2 . . . . 3 . . . 1 2 4 . . 1 2 2 4 1 . . Reinforcement 19 | . 1 . . . . . 1 . . . . . 1 . . 1 1 2 . 5 1 1 1 3 . 1 . Assault 22 | . . . . . . . . . . . . . . . . . . . . . . . 1 9 8 4 . Garrison 2 | . . . . . . . . . . . . . . . . . . . . . . 1 . 1 . . . Intercept . | . . . . . . . . . . . . . . . . . . . . . . . . . . . . Searches Triggered 5 | . . . . . . . . . . . . 1 . . . . 3 1 . . . . . . . . . Unchained Authorized 2 | . . . . . . . . . . . . . . . . . 1 . . . . . 1 . . . . Data Miner Redirects 11 | . . . . . . . . . . . . . . . . . 3 2 . . . . . 6 . . . Construction Impeded . | . . . . . . . . . . . . . . . . . . . . . . . . . . . . Haulers Reinforced 2 | . . . . . . . . . . . . . . . . . . . . 2 . . . . . . . Active Scanning Responses . | . . . . . . . . . . . . . . . . . . . . . . . . . . . . Cargo Convoy Interrupts 1 | . . . . . . . . . . . . 1 . . . . . . . . . . . . . . . Stealth | -11 -10 -10 -10 -9 -6 -6 -6 -6 -6 -6 -5 -5 -5 -5 -5 -5 -4 -4 -4 -3 -3 -2 -2 -2 -1 -1 -1 --------- Run | Yrd Mat Min Sub Scr Fac Was Fac Low Low Dat Pro Fac Ext Cet Arc Hub Fac Arm Lab Res Qua Res Tes Frg Acc Com Ac0 Distress Signals 67 | . 2 . . . 1 . 3 . . . . 1 3 2 . 5 4 5 . 12 . . 1 6 . 22 . Communications Jammed 21 | . . . . . . . . . . . . 1 . . . . . 1 . . 3 . . 16 . . . Distress Signals 20 | . . . . . . . . . . . . 1 . . . . . . . . 3 . . 16 . . . Times Spotted 727 | . 16 16 5 . 15 3 18 . . . 2 21 24 8 4 30 48 102 . 13 11 22 24 257 17 37 34 Peak Tracking Total 24 | . 5 3 3 . 3 3 9 . 1 . 3 5 5 5 3 19 10 22 . 6 6 9 7 15 5 11 24 Tactical Retreats 88 | . 3 . . . 5 . 7 . . . . 5 1 . . 5 9 17 . 1 1 . 4 21 . 4 5 Traps | -11 -10 -10 -10 -9 -6 -6 -6 -6 -6 -6 -5 -5 -5 -5 -5 -5 -4 -4 -4 -3 -3 -2 -2 -2 -1 -1 -1 ------- Run | Yrd Mat Min Sub Scr Fac Was Fac Low Low Dat Pro Fac Ext Cet Arc Hub Fac Arm Lab Res Qua Res Tes Frg Acc Com Ac0 Traps Triggered 42 | . 2 . . . 2 . 2 . . . . 2 2 . . 1 . 1 . . . . 1 14 . 15 . Indirectly . | . . . . . . . . . . . . . . . . . . . . . . . . . . . . Trap Hack Attempts . | . . . . . . . . . . . . . . . . . . . . . . . . . . . . Triggered . | . . . . . . . . . . . . . . . . . . . . . . . . . . . . Disarmed . | . . . . . . . . . . . . . . . . . . . . . . . . . . . . Reprogrammed 6 | . . . . . . . . . . . . . . . . . 6 . . . . . . . . . . Reused 3 | . . . . . . . . . . . . . . . . . 3 . . . . . . . . . . Traps Extracted . | . . . . . . . . . . . . . . . . . . . . . . . . . . . . Installed . | . . . . . . . . . . . . . . . . . . . . . . . . . . . . Triggered 3 | . . . . . . . . . . . . . . . . . 3 . . . . . . . . . . Most Traps Carried 3 | . . . . 3 3 . . . . . . . . . . . . . . . . . . . . . . Machines | -11 -10 -10 -10 -9 -6 -6 -6 -6 -6 -6 -5 -5 -5 -5 -5 -5 -4 -4 -4 -3 -3 -2 -2 -2 -1 -1 -1 ---------- Run | Yrd Mat Min Sub Scr Fac Was Fac Low Low Dat Pro Fac Ext Cet Arc Hub Fac Arm Lab Res Qua Res Tes Frg Acc Com Ac0 Machines Disabled 101 | . . . . . 2 . . . . . . . . 1 1 3 1 4 1 2 4 . 2 70 3 2 5 Max in Single Turn 7 | . . . . . 1 . . . . . . . . 1 . 1 1 1 1 1 1 . 1 7 1 1 1 Garrison Access 6 | . . . . . . . . . . . . . . . . 2 2 . . . 1 . . 1 . . . Network Hub 3 | . . . . . . . . . . . . . . . . 3 . . . . . . . . . . . Machines Repaired . | . . . . . . . . . . . . . . . . . . . . . . . . . . . . Machines Dismantled 2 | . . . . . . . . . . . . . . 1 . 1 . . . . . . . . . . . Machines Sabotaged 2 | . . . . . . . . . . . . . . . . 2 . . . . . . . . . . . Overloaded Fab Kills 7 | . . . . . 7 . . . . . . . . . . . . . . . . . . . . . . Hacking | -11 -10 -10 -10 -9 -6 -6 -6 -6 -6 -6 -5 -5 -5 -5 -5 -5 -4 -4 -4 -3 -3 -2 -2 -2 -1 -1 -1 --------- Run | Yrd Mat Min Sub Scr Fac Was Fac Low Low Dat Pro Fac Ext Cet Arc Hub Fac Arm Lab Res Qua Res Tes Frg Acc Com Ac0 Machines Accessed 202 | . 7 . . 6 16 . 26 . 1 4 . 33 7 1 . 10 23 14 . 12 14 4 7 10 2 5 . Terminals 106 | . 6 . . . 8 . 13 . . . . 16 7 1 . 8 9 9 . 5 9 . 4 6 1 4 . Fabricators 11 | . . . . . 1 . 2 . . . . 2 . . . . 1 3 . . . 1 . . 1 . . Repair Stations 10 | . . . . . . . 2 . . . . 3 . . . . 2 . . 1 1 . 1 . . . . Recycling Units 39 | . 1 . . . 5 . 6 . . . . 8 . . . . 8 2 . 3 . 2 . 3 . 1 . Scanalyzers 14 | . . . . . 1 . 3 . . . . 2 . . . . 1 . . 2 3 . 1 1 . . . Garrison Access 11 | . . . . . 1 . . . . . . 2 . . . 2 2 . . 1 1 1 1 . . . . Total Hacks 729 | . 26 . . 13 41 . 64 . 1 31 . 70 23 3 . 25 93 79 . 71 78 11 30 38 6 26 . Successful 349 | . 13 . . 13 20 . 25 . 1 31 . 28 10 . . 15 48 43 . 29 40 6 6 11 1 9 . Failed 378 | . 13 . . . 20 . 39 . . . . 42 13 3 . 10 44 36 . 42 38 5 24 27 5 17 . Catastrophic 73 | . 1 . . . 8 . 4 . . . . 6 6 1 . 3 6 2 . 7 4 4 8 8 1 4 . Database Lockouts 2 | . . . . . 1 . . . . . . . . . . . 1 . . . . . . . . . . Manual 423 | . 26 . . . 24 . 45 . . . . 48 23 1 . 18 59 46 . 28 27 4 19 29 . 26 . Terminals 449 | . 25 . . . 26 . 33 . . . . 40 23 3 . 22 62 60 . 42 46 . 20 20 4 23 . Fabricators 34 | . . . . . 1 . 7 . . . . 3 . . . . 2 13 . . . 6 . . 2 . . Repair Stations 36 | . . . . . . . 6 . . . . 6 . . . . 6 . . 9 4 . 5 . . . . Recycling Units 73 | . 1 . . . 9 . 10 . . . . 14 . . . . 13 6 . 3 . 3 . 11 . 3 . Scanalyzers 71 | . . . . . 3 . 8 . . . . 4 . . . . 6 . . 13 26 . 4 7 . . . Garrison Access 21 | . . . . . 2 . . . . . . 3 . . . 3 4 . . 4 2 2 1 . . . . Terminal Hacks 115 | . 3 . . 13 7 . 1 . 1 31 . 2 . . . 3 14 14 . 9 12 . 1 3 1 . . Record 17 | . . . . 5 . . . . . 11 . . . . . . . . . . 1 . . . . . . Part Schematic 16 | . 1 . . . . . . . . 10 . . . . . . 4 1 . . . . . . . . . Robot Schematic 8 | . 1 . . . . . . . . 7 . . . . . . . . . . . . . . . . . Robot Analysis 7 | . 1 . . 6 . . . . . . . . . . . . . . . . . . . . . . . Prototype ID Bank 4 | . . . . . . . . . . 3 . . . . . . . . . . 1 . . . . . . Open Door 4 | . . . . 1 . . . . 1 . . 1 . . . . . . . . . . 1 . . . . Branch Access Points 3 | . . . . . 1 . . . . . . . . . . . 1 . . 1 . . . . . . . Emergency Access Points 3 | . . . . . . . . . . . . . . . . . . 2 . . 1 . . . . . . Machine Index 1 | . . . . . . . . . . . . . . . . . . . . 1 . . . . . . . Terminal Index 3 | . . . . . . . 1 . . . . . . . . . 1 . . . . . . . 1 . . Recycling Unit Index 2 | . . . . . 1 . . . . . . . . . . . 1 . . . . . . . . . . Scanalyzer Index 1 | . . . . . . . . . . . . . . . . . 1 . . . . . . . . . . Garrison Index 1 | . . . . . . . . . . . . . . . . . . 1 . . . . . . . . . Alert Level 6 | . . . . . 1 . . . . . . . . . . . . . . 2 2 . . 1 . . . Unreport Threat 7 | . . . . . . . . . . . . . . . . . 1 3 . 2 . . . 1 . . . Locate Traps 12 | . . . . . 4 . . . . . . 1 . . . . 2 3 . . 2 . . . . . . Reprogram Traps 2 | . . . . . . . . . . . . . . . . . 2 . . . . . . . . . . Patrol Status 1 | . . . . . . . . . . . . . . . . . . 1 . . . . . . . . . Recall Extermination 1 | . . . . . . . . . . . . . . . . . . . . . 1 . . . . . . Registered Components 2 | . . . . . . . . . . . . . . . . . . . . 1 1 . . . . . . Zone Layout 12 | . . . . . . . . . . . . . . . . 3 1 3 . 2 3 . . . . . . Proto ID Catalog 2 | . . . . 1 . . . . . . . . . . . . . . . . . . . 1 . . . Fabricator Hacks 10 | . . . . . . . 2 . . . . . . . . . 2 3 . . . 3 . . . . . Load Schematic 7 | . . . . . . . 2 . . . . . . . . . 1 2 . . . 2 . . . . . Build 3 | . . . . . . . . . . . . . . . . . 1 1 . . . 1 . . . . . Repair Station Hacks 16 | . . . . . . . 3 . . . . 2 . . . . 5 . . 4 1 . 1 . . . . Scan Component 11 | . . . . . . . 2 . . . . 2 . . . . 3 . . 2 1 . 1 . . . . Repair 5 | . . . . . . . 1 . . . . . . . . . 2 . . 2 . . . . . . . Recycling Unit Hacks . | . . . . . . . . . . . . . . . . . . . . . . . . . . . . Scanalyzer 30 | . . . . . 2 . 4 . . . . 2 . . . . 2 . . 4 13 . . 3 . . . Insert Component 13 | . . . . . . . 2 . . . . 1 . . . . 1 . . 1 7 . . 1 . . . Analyze 7 | . . . . . . . 2 . . . . . . . . . 1 . . . 4 . . . . . . Retrieve Study 10 | . . . . . 2 . . . . . . 1 . . . . . . . 3 2 . . 2 . . . Garrison Access Hacks 5 | . . . . . . . . . . . . . . . . 2 2 . . . 1 . . . . . . Seal Access 5 | . . . . . . . . . . . . . . . . 2 2 . . . 1 . . . . . . Unauthorized Hacks 169 | . 10 . . . 11 . 15 . . . . 22 10 . . 10 22 25 . 11 13 3 4 5 . 8 . Terminals 127 | . 9 . . . 4 . 11 . . . . 15 10 . . 10 14 20 . 8 12 . 4 3 . 7 . Track 24 | . . . . . 2 . . . . . . 1 . . . 4 2 5 . 1 2 . 2 2 . 3 . Assimilate 13 | . . . . . . . 4 . . . . 3 1 . . 1 1 3 . . . . . . . . . Botnet 31 | . 1 . . . 2 . 2 . . . . 4 2 . . 2 4 2 . 3 4 . 1 1 . 3 . Disrupt 2 | . . . . . . . . . . . . . . . . . . 2 . . . . . . . . . Operators 10 | . 2 . . . . . . . . . . 1 1 . . 1 2 1 . 1 1 . . . . . . Skim 45 | . 6 . . . . . 5 . . . . 6 6 . . . 5 7 . 3 5 . 1 . . 1 . Sabotage 2 | . . . . . . . . . . . . . . . . 2 . . . . . . . . . . . Fabricators 5 | . . . . . 1 . . . . . . . . . . . . 3 . . . 1 . . . . . Prioritize 4 | . . . . . . . . . . . . . . . . . . 3 . . . 1 . . . . . Overload 1 | . . . . . 1 . . . . . . . . . . . . . . . . . . . . . . Repair Stations . | . . . . . . . . . . . . . . . . . . . . . . . . . . . . Recycling Units 34 | . 1 . . . 5 . 4 . . . . 7 . . . . 8 2 . 3 . 2 . 1 . 1 . Mask 1 | . . . . . . . . . . . . . . . . . . . . . . . . . . 1 . Tunnel 1 | . 1 . . . . . . . . . . . . . . . . . . . . . . . . . . Fedlink 32 | . . . . . 5 . 4 . . . . 7 . . . . 8 2 . 3 . 2 . 1 . . . Scanalyzers 3 | . . . . . 1 . . . . . . . . . . . . . . . 1 . . 1 . . . Researchers 2 | . . . . . . . . . . . . . . . . . . . . . 1 . . 1 . . . Extract 1 | . . . . . 1 . . . . . . . . . . . . . . . . . . . . . . Garrison Access . | . . . . . . . . . . . . . . . . . . . . . . . . . . . . Data Cores Recovered 2 | . . . . . . . . . . . . . . . . . 1 . . . 1 . . . . . . Used 1 | . . . . . . . . . . . . . . . . . . . . . 1 . . . . . . Hacking Detections 142 | . 6 . . . 11 . 23 . . . . 24 6 1 . 8 12 10 . 9 10 2 7 7 2 4 . Full Trace Events 13 | . . . . . 2 . 5 . . . . 3 . . . . 1 1 . 1 . . . . . . . Feedback Events 1 | . . . . . 1 . . . . . . . . . . . . . . . . . . . . . . Corruption 1 | . . . . . 1 . . . . . . . . . . . . . . . . . . . . . . Feedback Blocked . | . . . . . . . . . . . . . . . . . . . . . . . . . . . . Robot Schematics Acquired 14 | . 1 . . . . . . . . 7 . . . . . . . . . . 1 . . 5 . . . Robots Built . | . . . . . . . . . . . . . . . . . . . . . . . . . . . . Authchips . | . . . . . . . . . . . . . . . . . . . . . . . . . . . . Time . | . . . . . . . . . . . . . . . . . . . . . . . . . . . . Total Robot Build Rating . | . . . . . . . . . . . . . . . . . . . . . . . . . . . . Part Schematics Acquired 35 | . 1 . . . 5 . 1 . . 10 . . . . . . 5 1 . . 2 . . 10 . . . Parts Built 4 | . . . . . . . . . . . . . . . . . 1 1 . . . 2 . . . . . Authchips 2 | . . . . . . . . . . . . . . . . . . 1 . . . 1 . . . . . Time 111 | . . . . . . . . . . . . . . . . . 84 12 . . . 15 . . . . . Total Part Build Rating 17 | . . . . . . . . . . . . . . . . . 6 1 . . . 10 . . . . . Part Studies Acquired 10 | . . . . . 2 . . . . . . 1 . . . . . . . 3 2 . . 2 . . . Parts Repaired 5 | . . . . . . . 1 . . . . . . . . . 2 . . 2 . . . . . . . Time 274 | . . . . . . . 68 . . . . . . . . . 158 . . 48 . . . . . . . Parts Recycled . | . . . . . . . . . . . . . . . . . . . . . . . . . . . . Recycled Matter . | . . . . . . . . . . . . . . . . . . . . . . . . . . . . Retrieved Matter . | . . . . . . . . . . . . . . . . . . . . . . . . . . . . Retrieved Components . | . . . . . . . . . . . . . . . . . . . . . . . . . . . . Parts Scanalyzed 4 | . . . . . . . 1 . . . . . . . . . 1 . . . 2 . . . . . . Part Schematics Acquired 4 | . . . . . . . 1 . . . . . . . . . 1 . . . 2 . . . . . . Parts Damaged 2 | . . . . . . . . . . . . . . . . . . . . . 2 . . . . . . Bothacking | -11 -10 -10 -10 -9 -6 -6 -6 -6 -6 -6 -5 -5 -5 -5 -5 -5 -4 -4 -4 -3 -3 -2 -2 -2 -1 -1 -1 ------------ Run | Yrd Mat Min Sub Scr Fac Was Fac Low Low Dat Pro Fac Ext Cet Arc Hub Fac Arm Lab Res Qua Res Tes Frg Acc Com Ac0 Used RIF Installer . | . . . . . . . . . . . . . . . . . . . . . . . . . . . . Robots Hacked . | . . . . . . . . . . . . . . . . . . . . . . . . . . . . Non-combat . | . . . . . . . . . . . . . . . . . . . . . . . . . . . . Combat . | . . . . . . . . . . . . . . . . . . . . . . . . . . . . Robot Hacks Applied . | . . . . . . . . . . . . . . . . . . . . . . . . . . . . Relay Couplers Released 1 | . . . . . . . . . . . . . . . . . . . . . . . . 1 . . . Machine Destruction 1 | . . . . . . . . . . . . . . . . . . . . . . . . 1 . . . Fabnet Peak Effective % . | . . . . . . . . . . . . . . . . . . . . . . . . . . . . Robots Rewired 11 | . . . . . . . . . . . . . 9 . . . . 2 . . . . . . . . . Allies Hacked 2 | . . . . . . . 1 . . . . . . . . . . 1 . . . . . . . . . Hacks Repelled . | . . . . . . . . . . . . . . . . . . . . . . . . . . . . Allies | -11 -10 -10 -10 -9 -6 -6 -6 -6 -6 -6 -5 -5 -5 -5 -5 -5 -4 -4 -4 -3 -3 -2 -2 -2 -1 -1 -1 -------- Run | Yrd Mat Min Sub Scr Fac Was Fac Low Low Dat Pro Fac Ext Cet Arc Hub Fac Arm Lab Res Qua Res Tes Frg Acc Com Ac0 Total Allies 51 | . . 2 . . . . 3 . . . . 2 22 5 . 1 1 15 . . . . . . . . . Largest Group 22 | . . 2 1 1 . . 1 . . . . 2 22 21 13 8 1 10 . . . . . . . . . Highest-Rated Group 947 | . . 42 11 11 . . 26 . . . . 36 775 947 647 510 10 481 . . . . . . . . . Highest-Rated Ally 159 | . . 31 11 11 . . 26 . . . . 26 159 159 96 96 10 68 . . . . . . . . . Total Orders 37 | . . . . . . . . . . . . . . . . 4 . . . . . . . 33 . . . STAY 8 | . . . . . . . . . . . . . . . . 4 . . . . . . . 4 . . . FOLLOW 1 | . . . . . . . . . . . . . . . . . . . . . . . . 1 . . . EXPLORE 5 | . . . . . . . . . . . . . . . . . . . . . . . . 5 . . . RETURN 23 | . . . . . . . . . . . . . . . . . . . . . . . . 23 . . . Ally Attacks 374 | . . 4 . . . . . . . . . . 91 100 37 34 . 52 . . . . . 43 . 13 . Total Damage 12130 | . . 83 . . . . . . . . . . 1955 1939 1036 992 . 2051 . . . . . 3090 . 984 . Kills 58 | . . 4 . . . . . . . . . . 12 12 5 9 . 8 . . . . . 8 . . . Allies Corrupted 2 | . . . . . . . . . . . . . . . . 2 . . . . . . . . . . . Allies Melted 2 | . . . . . . . . . . . . . . . . . . . . . . . . 2 . . . Intel | -11 -10 -10 -10 -9 -6 -6 -6 -6 -6 -6 -5 -5 -5 -5 -5 -5 -4 -4 -4 -3 -3 -2 -2 -2 -1 -1 -1 ------- Run | Yrd Mat Min Sub Scr Fac Was Fac Low Low Dat Pro Fac Ext Cet Arc Hub Fac Arm Lab Res Qua Res Tes Frg Acc Com Ac0 Active Infowar (turns) 15792 | . 24 227 570 2341 726 36 764 363 384 22 317 1068 . 274 1218 280 628 1226 81 1184 680 229 403 2399 343 5 . Optics 1774 | . . . . . 611 36 571 . . . . . . . . . . . . . . . . 556 . . . Sensors 8457 | . . . . . 136 36 684 363 384 22 317 901 . 274 1218 280 545 887 81 1156 567 131 276 199 . . . IFF 1735 | . . . . . . . . . . . . . . . . . 49 . . . . . . 1339 343 4 . Terrain 1796 | . . 190 10 1371 225 . . . . . . . . . . . . . . . . . . . . . . Structural 511 | . . . . . 511 . . . . . . . . . . . . . . . . . . . . . . Traps 14 | . . . . . 14 . . . . . . . . . . . . . . . . . . . . . . Seismic 1916 | . 24 37 560 970 324 . . . . . . . . . . . . . . . . . . . . 1 . Machine Analysis 1186 | . . . . . 217 . . . . . . 335 . . . . 24 422 . 188 . . . . . . . Cloaking 753 | . . . . . . . . . . . . . . . . . 70 96 . . . . 52 535 . . . Jamming 1182 | . . . . . . . . . . . . 200 . . . . 1 115 . . 236 200 95 188 147 . . ECM 2 | . . . . . . . . . . . . . . . . . . . . . . . . 2 . . . Robot Analysis Total 7 | . 1 . . 6 . . . . . . . . . . . . . . . . . . . . . . . Derelict Logs Recovered 10 | . . 1 . 3 . . . 2 2 . 2 . . . . . . . . . . . . . . . . Drone Launches 52 | . . . . . . . . . . . . . . . . . . . . . . . . 46 . 6 . Drone Recoveries 40 | . . . . . . . . . . . . . . . . . . . . . . . . 40 . . . Exploration | -11 -10 -10 -10 -9 -6 -6 -6 -6 -6 -6 -5 -5 -5 -5 -5 -5 -4 -4 -4 -3 -3 -2 -2 -2 -1 -1 -1 ------------- Run | Yrd Mat Min Sub Scr Fac Was Fac Low Low Dat Pro Fac Ext Cet Arc Hub Fac Arm Lab Res Qua Res Tes Frg Acc Com Ac0 Turns Passed 26447 | 133 761 1233 570 2341 726 36 776 363 384 22 317 1158 1141 339 1218 314 768 1416 301 1243 747 305 787 3948 355 4439 306 Spaces Moved 35932 | 66 410 613 301 2068 976 111 2060 1158 1019 81 1035 2212 968 266 204 632 1783 2039 235 1155 947 394 779 5679 630 7152 959 Core 147 | 4 . . . . . . . . . . . 5 97 20 1 . 2 18 . . . . . . . . . Treads 1321 | 62 359 557 301 42 . . . . . . . . . . . . . . . . . . . . . . . Legs . | . . . . . . . . . . . . . . . . . . . . . . . . . . . . Wheels 2409 | . 51 56 . 2026 276 . . . . . . . . . . . . . . . . . . . . . . Hover 17027 | . . . . . . . . . . . . . . . . . . 327 33 1155 947 394 779 5679 630 6124 959 Flight 15028 | . . . . . 700 111 2060 1158 1019 81 1035 2207 871 246 203 632 1781 1694 202 . . . . . . 1028 . Fastest Speed 5 | 50 90 105 160 105 6 5 5 22 22 22 22 6 12 21 21 6 11 15 24 42 42 39 39 32 32 20 15 Average Speed 41 | 153 151 154 160 109 44 19 19 22 22 22 22 21 39 34 22 21 25 33 51 42 42 39 43 34 32 36 21 Slowest Speed 445 | 160 160 160 160 160 160 20 23 23 22 22 94 200 200 200 150 23 200 200 178 42 42 42 139 121 32 445 24 Overloaded Moves 1130 | . . . . . 122 7 52 . . . . 87 21 . . 62 156 432 . . . . . . . . 191 Propulsion Burnouts 1 | . . . . . . . . . . . . . . . . . . 1 . . . . . . . . . Robots Hopped 76 | . . . . . 6 . 14 1 . . . 16 9 2 . 11 13 4 . . . . . . . . . Potential Cave-ins 27 | . . . . . . . . . . . . . . . . . . . . 2 . . . 20 . 5 . Cave-ins Triggered 2 | . . . . . . . . . . . . . . . . . . . . . . . . 2 . . . Teleports 5 | . . . . . . . . . . . . . . . . . . . . . 1 . . 2 . 1 1 Exploration Rate (%) 65 | 4 66 85 29 96 34 79 56 97 88 70 94 60 86 66 89 67 44 75 92 33 88 13 59 81 14 92 66 Regions Visited 27 Branch Regions 18 Pre-discovered Areas 7 | . 1 2 . . 1 . . 1 1 1 . . . . . . . . . . . . . . . . . Known Exits Taken 17 | . . . . . . . 1 1 1 1 1 1 . 1 1 1 1 1 1 1 1 1 1 1 . . . Unknown Exits Taken 8 | 1 1 1 1 1 . . . . . . . . 1 . . . . . . . . . . . 1 1 . Scrap Searched 23 | . . 2 . 10 . . . 4 5 . 2 . . . . . . . . . . . . . . . . Spaces Dug 460 | . . . . . 20 . 53 . 5 . 3 36 . . . 3 29 84 15 33 47 5 19 66 21 20 1 Terrain Destroyed 1858 | . . 15 . . 20 . 53 . 47 . 74 57 . . . 3 29 98 15 36 57 5 19 1280 27 22 1 Melee 323 | . . . . . 20 . 53 . 5 . 3 36 . . . 3 29 38 15 31 26 5 18 17 10 13 1 Projectile 84 | . . . . . . . . . . . . . . . . . . . . 5 31 . 1 23 17 7 . AOE 1451 | . . 15 . . . . . . 42 . 71 21 . . . . . 60 . . . . . 1240 . 2 . Terrain Rammed . | . . . . . . . . . . . . . . . . . . . . . . . . . . . . Walls Destroyed . | . . . . . . . . . . . . . . . . . . . . . . . . . . . . Machines Disabled . | . . . . . . . . . . . . . . . . . . . . . . . . . . . . Actions | -11 -10 -10 -10 -9 -6 -6 -6 -6 -6 -6 -5 -5 -5 -5 -5 -5 -4 -4 -4 -3 -3 -2 -2 -2 -1 -1 -1 --------- Run | Yrd Mat Min Sub Scr Fac Was Fac Low Low Dat Pro Fac Ext Cet Arc Hub Fac Arm Lab Res Qua Res Tes Frg Acc Com Ac0 Total 46134 | 87 495 847 387 2155 1185 126 2310 1257 1163 84 1106 2757 1671 498 1362 780 2004 2584 392 1824 1191 530 1186 7414 756 8947 1036 Wait 6258 | . 36 195 69 21 57 10 159 79 132 4 57 417 563 202 1143 139 108 208 60 479 70 52 291 587 63 1056 1 Move 35758 | 65 409 612 300 2067 964 110 2033 1155 1018 80 1034 2179 950 262 203 610 1758 2030 234 1154 946 393 778 5676 629 7151 958 Hop 69 | . . . . . 6 . 12 1 . . . 16 8 1 . 10 11 4 . . . . . . . . . Pick Up 585 | 10 10 3 5 28 24 2 12 6 . . . 11 3 7 1 1 26 43 24 22 27 9 12 137 4 154 4 Fast Attach 191 | 5 3 . . 4 16 . 2 1 . . . 7 3 . 2 2 10 22 4 5 2 6 1 57 3 28 8 Attach 185 | 1 1 1 . 1 14 . 1 1 . . . 9 2 1 . 4 7 17 5 8 7 2 4 56 1 41 1 Detach 54 | . . . . . 3 . 1 . . . . 6 1 . . . . 3 3 . . 1 2 22 . 12 . Swap 421 | . 6 9 5 7 10 1 14 1 4 . 4 23 5 6 2 . 12 48 17 28 19 12 33 99 2 44 10 Drop 609 | 1 4 2 5 27 37 3 9 7 . . . 10 4 7 3 2 17 37 27 36 24 14 12 155 2 154 10 Fire 360 | 5 26 22 3 . 1 . . . 4 . 8 2 . . . . . 3 . 7 51 . 4 209 9 6 . Melee 1263 | . . . . . 53 . 67 6 5 . 3 75 49 4 8 9 55 159 18 85 45 41 49 315 43 130 44 Ram . | . . . . . . . . . . . . . . . . . . . . . . . . . . . . Kick . | . . . . . . . . . . . . . . . . . . . . . . . . . . . . Crush 3 | . . 3 . . . . . . . . . . . . . . . . . . . . . . . . . Escape Stasis 231 | . . . . . . . . . . . . . 12 . . . . . . . . . . 53 . 166 . Rewire 84 | . . . . . . . . . . . . . 69 . . . . 10 . . . . . . . 5 . Trap . | . . . . . . . . . . . . . . . . . . . . . . . . . . . . Miscellaneous 63 | . . . . . . . . . . . . 2 2 8 . 3 . . . . . . . 48 . . . Route ------- -11/Scrapyard -10/Materials (discovered 3 exits: [*Mat x2] / [*Min]) -10/Mines (discovered 3 exits: [*Mat x2] / [*Sub]) -10/Subcaves -9/Scraptown (discovered 2 exits: *Fac x2) -6/Factory (discovered 3 exits: *Fac / Low x2) -6/Waste -6/Factory (discovered 4 exits: *Fac x3 / *Low) -6/Lower Caves -6/Lower Caves -6/Data Miner -5/Proximity Caves -5/Factory (discovered 6 exits: *Fac x3 / *Upp x2 / *Ext) -5/Extension (discovered 2 exits: *Fac / *Cet) -5/Cetus (discovered 2 exits: *Fac / *Arc) -5/Archives (discovered 3 exits: *Fac / *Hub x2) -5/Hub_04(d) (discovered 3 exits: *Fac x3) -4/Factory (discovered 5 exits: *Res x2 / *Upp x2 / *Arm) -4/Armory (discovered 3 exits: Res x2 / *Lab) -4/Lab -3/Research (discovered 3 exits: Res / *Qua x2) -3/Quarantine -2/Research (discovered 2 exits: *Acc / *Tes) -2/Testing (discovered 2 exits: [*Sec] / *Frg) -2/Protoforge -1/Access -1/Command (discovered 2 exits: [*Sur] / [*Ac0]) -1/Access_0 Near Former Tau Ceti IV History --------- Turn | Location | Event 27 | -11/Scrapyard | Discovered new exit (range 16) 134 | -11/Scrapyard | Entered Materials 269 | -10/Materials | Discovered new exit (range 9) 306 | -10/Materials | Build established: Mutant 435 | -10/Materials | Discovered new exit (range 16) 608 | -10/Materials | Discovered new exit (range 3) 734 | -10/Materials | Derelicts attacked the area 841 | -10/Materials | Core integrity fell below 50% 895 | -10/Materials | Entered Mines 973 | -10/Mines | Excavation squad dispatched 973 | -10/Mines | A large section of the Mines collapsed 974 | -10/Mines | Core integrity fell below 20% 1615 | -10/Mines | Discovered new exit (range 14) 1880 | -10/Mines | Discovered new exit (range 5) 1987 | -10/Mines | Learned location of Mines (-8) 2111 | -10/Mines | Discovered new exit (range 5) 2128 | -10/Mines | Entered Subcaves 2128 | -10/Subcaves | Accompanied by 1 ally 2129 | -10/Subcaves | Approached by a straggling Scientist 2675 | -10/Subcaves | Shifting Twisted Machinery released Sub. Beam Cannon 2698 | -10/Subcaves | Entered Scraptown 2698 | -9/Scraptown | Accompanied by 1 ally 3149 | -9/Scraptown | Heard Great Nut preacher, LISTEN AND RECITE! 3169 | -9/Scraptown | Discovered new exit (range 5) 3236 | -9/Scraptown | Scanned Subdweller tech in exchange for log data 3240 | -9/Scraptown | Learned Research security intel 3241 | -9/Scraptown | Learned Research trap positions 3242 | -9/Scraptown | Learned Factory terminal intel 3276 | -9/Scraptown | Visited Bundlers 3340 | -9/Scraptown | Visited Assassins FH 3363 | -9/Scraptown | Visited Spacefarers 3417 | -9/Scraptown | Visited Artisan Demo Area 3447 | -9/Scraptown | Visited Symbiants 3498 | -9/Scraptown | Visited Observation Area 3545 | -9/Scraptown | Visited Awakened 3588 | -9/Scraptown | Visited UFD Registry 3588 | -9/Scraptown | Registered with UFD as "Rustbomber" 3737 | -9/Scraptown | Visited Chapter 10 3834 | -9/Scraptown | Visited LU-1G1's Boring Crew 3875 | -9/Scraptown | Visited Junk Repository 3921 | -9/Scraptown | Delivered Scrap Shield to a Scientist 4045 | -9/Scraptown | Visited DA-N13 Charitable Foundation 4054 | -9/Scraptown | Found DCF Scrap (30 items) 4073 | -9/Scraptown | Visited Analyses Database 4095 | -9/Scraptown | Visited Derelict Rescue Squad 4107 | -9/Scraptown | Found DRS Beacon 4122 | -9/Scraptown | Visited Sword Containment 4126 | -9/Scraptown | Discovered new exit (range 19) 4139 | -9/Scraptown | Visited A0-MCA Data Center 4145 | -9/Scraptown | Given a B rating by A0-MCA 4149 | -9/Scraptown | Found A0-MCA's Component Scanner 4214 | -9/Scraptown | Visited Science Guys 4979 | -9/Scraptown | Met Optimus 4979 | -9/Scraptown | Accepted into 0bPrime 5039 | -9/Scraptown | Entered Factory 5039 | -6/Factory | Evolved 8 slots: Propulsion x4, Utility x4 5040 | -6/Factory | Loaded intel: 26 terminal locations 5329 | -6/Factory | Lost 3 parts (1p1n1u) 5372 | -6/Factory | Identified exit to Lower Caves 5387 | -6/Factory | Loaded intel: 8 recycling unit locations 5498 | -6/Factory | Found Powered Armor 5500 | -6/Factory | Found Powered Armor 5547 | -6/Factory | Lost 5 parts (1p1n2u1w) 5572 | -6/Factory | Learned location of Protoforge (-2) 5627 | -6/Factory | Spotted B-75 Beast 5665 | -6/Factory | Discovered new exit (range 2) 5666 | -6/Factory | Identified exit to Factory 5719 | -6/Factory | Central database locked down 5765 | -6/Factory | Manually triggered Chute Trap 5765 | -6/Factory | Sucked down chute 5765 | -6/Factory | Entered Waste 5767 | -6/Waste | Spotted C-40 Crusher 5767 | -6/Waste | Spotted C-40 Crusher 5767 | -6/Waste | Spotted C-40 Crusher 5770 | -6/Waste | Found Broken Exp. Signal Interpreter 5771 | -6/Waste | Spotted C-40 Crusher 5772 | -6/Waste | Found Adv. Powered Armor 5781 | -6/Waste | Spotted C-40 Crusher 5781 | -6/Waste | Spotted C-40 Crusher 5786 | -6/Waste | Discovered new exit (range 11) 5793 | -6/Waste | Identified exit to Factory 5801 | -6/Waste | Entered Factory 5836 | -6/Factory | Loaded intel: 8 recycling unit locations 5961 | -6/Factory | Build established: Scout 6014 | -6/Factory | Discovered exit to Factory (range 8) 6233 | -6/Factory | Repaired Adv. Powered Armor? 6335 | -6/Factory | Discovered exit to Factory (range 9) 6528 | -6/Factory | Discovered exit to Lower Caves (range 7) 6543 | -6/Factory | Learned Factory recycling unit intel 6577 | -6/Factory | Entered Lower Caves 6579 | -6/Lower Caves | UFD Scientist delivered a prototype 6582 | -6/Lower Caves | Found Enh. Scrap Shield 6697 | -6/Lower Caves | Learned location of Extension (-5) 6748 | -6/Lower Caves | Learned 8 Factory zone layouts 6788 | -6/Lower Caves | Build established: Sprinter 6799 | -6/Lower Caves | Discovered new exit (range 10) 6801 | -6/Lower Caves | Identified exit to Lower Caves 6940 | -6/Lower Caves | Entered another Lower Caves area 7078 | -6/Lower Caves | Learned 4 Factory zone layouts 7182 | -6/Lower Caves | Encountered a Warlord checkpoint 7306 | -6/Lower Caves | Discovered new exit (range 9) 7308 | -6/Lower Caves | Identified exit to Data Miner 7324 | -6/Lower Caves | Entered Data Miner 7324 | -6/Data Miner | Discovered new exit (range 6) 7329 | -6/Data Miner | Met Data Miner 7333 | -6/Data Miner | Learned location of Section 7 (-2) 7333 | -6/Data Miner | Acquired the access code to Warlord's prototype stash 7338 | -6/Data Miner | Received God Mode back door access code from Data Miner 7343 | -6/Data Miner | Identified exit to Proximity Caves 7346 | -6/Data Miner | Entered Proximity Caves 7429 | -5/Proximity Caves | Learned Factory terminal intel 7478 | -5/Proximity Caves | Learned 4 Factory zone layouts 7661 | -5/Proximity Caves | Discovered exit to Factory (range 9) 7663 | -5/Proximity Caves | Entered Factory 7663 | -5/Factory | Evolved 2 slots: Utility x2 7664 | -5/Factory | Identified exit to Extension 7664 | -5/Factory | Identified exit to Factory 7665 | -5/Factory | Loaded intel: 28 terminal locations 7666 | -5/Factory | Loaded intel: 8 recycling unit locations 7732 | -5/Factory | Loaded intel: 8 recycling unit locations 7844 | -5/Factory | Discovered exit to Factory (range 4) 8174 | -5/Factory | Discovered new exit (range 11) 8177 | -5/Factory | Identified exit to Upper Caves 8260 | -5/Factory | Learned Extension terminal intel 8273 | -5/Factory | Lost 4 parts (1n2u1w) 8320 | -5/Factory | Learned Armory terminal intel 8380 | -5/Factory | Discovered exit to Upper Caves (range 10) 8414 | -5/Factory | Learned location of 1 exit from Armory 8447 | -5/Factory | Learned 4 Factory zone layouts 8471 | -5/Factory | Learned Research stockpile data 8507 | -5/Factory | Learned Extension security intel 8563 | -5/Factory | Search patrols dispatched 8613 | -5/Factory | Learned location of 1 exit from Research 8766 | -5/Factory | Cargo convoy interrupted 8821 | -5/Factory | Entered Extension 8823 | -5/Extension | Loaded intel: 18 terminal locations 8840 | -5/Extension | Rescued a captive Derelict 8843 | -5/Extension | Rescued a captive Derelict 8917 | -5/Extension | Rescued A7 8933 | -5/Extension | Rescued a captive Derelict 8951 | -5/Extension | Rescued a captive Derelict 8952 | -5/Extension | Rescued a captive Derelict 9011 | -5/Extension | Rescued a captive Derelict 9151 | -5/Extension | Learned 4 Quarantine zone layouts 9206 | -5/Extension | Learned Armory trap positions 9252 | -5/Extension | Learned location of 1 exit from Armory 9336 | -5/Extension | Learned Research security intel 9448 | -5/Extension | Spotted B-75 Beast 9451 | -5/Extension | Spotted B-75 Beast 9458 | -5/Extension | Destroyed B-75 Beast 9477 | -5/Extension | Destroyed B-75 Beast 9697 | -5/Extension | Rescued a captive Derelict 9698 | -5/Extension | Rescued a captive Derelict 9752 | -5/Extension | Rescued a captive Derelict 9753 | -5/Extension | Rescued a captive Derelict 9793 | -5/Extension | Rescued a captive Derelict 9874 | -5/Extension | Discovered exit to Factory (range 10) 9874 | -5/Extension | Discovered new exit (range 6) 9962 | -5/Extension | Entered Cetus 9962 | -5/Cetus | Accompanied by 21 allies (A7) 9967 | -5/Cetus | Acquired a Cetus Manufacturing Module code from A7 9969 | -5/Cetus | Spotted Cetus Guard 9980 | -5/Cetus | Spotted Cetus Guard 9997 | -5/Cetus | Allies destroyed Cetus Guard 10002 | -5/Cetus | Allies destroyed Cetus Guard 10027 | -5/Cetus | Lost 4 allies 10042 | -5/Cetus | Started Cetus Manufacturing Module 10067 | -5/Cetus | Manufactured an Enhanced Grunt 10069 | -5/Cetus | Escorted A7 to Cetus Mainframe 10089 | -5/Cetus | Discovered new exit (range 16) 10092 | -5/Cetus | Manufactured an Enhanced Grunt 10117 | -5/Cetus | Manufactured an Enhanced Grunt 10124 | -5/Cetus | Spotted Cetus Guard 10124 | -5/Cetus | Spotted Cetus Guard 10142 | -5/Cetus | Manufactured an Enhanced Grunt 10149 | -5/Cetus | Spotted Cetus Guard 10149 | -5/Cetus | Spotted Cetus Guard 10160 | -5/Cetus | Discovered exit to Factory (range 15) 10162 | -5/Cetus | Allies destroyed Cetus Guard 10163 | -5/Cetus | Allies destroyed Cetus Guard 10167 | -5/Cetus | Manufactured an Enhanced Grunt 10167 | -5/Cetus | Allies destroyed Cetus Guard 10168 | -5/Cetus | Allies destroyed Cetus Guard 10171 | -5/Cetus | Extracted ID and sensor layout for unrecognized location from A7's data core 10181 | -5/Cetus | Met Revision 17 10199 | -5/Cetus | Lost 9 allies 10256 | -5/Cetus | Identified exit to Archives 10301 | -5/Cetus | Entered Archives 10301 | -5/Archives | Accompanied by 13 allies 10366 | -5/Archives | Lost 5 allies 10472 | -5/Archives | Discovered exit to Factory (range 16) 10481 | -5/Archives | Discovered new exit (range 13) 10797 | -5/Archives | Build established: Commander-Sprinter 11456 | -5/Archives | Discovered new exit (range 16) 11460 | -5/Archives | Identified exit to Hub_04(d) 11519 | -5/Archives | Entered Hub_04(d) 11519 | -5/Hub_04(d) | Accompanied by 8 allies 11550 | -5/Hub_04(d) | Discovered exit to Factory (range 5) 11759 | -5/Hub_04(d) | Discovered exit to Factory (range 6) 11782 | -5/Hub_04(d) | Discovered exit to Factory (range 16) 11792 | -5/Hub_04(d) | Network Hub disabled 11799 | -5/Hub_04(d) | Spotted Lightning 11799 | -5/Hub_04(d) | Spotted Lightning 11799 | -5/Hub_04(d) | Network Hub disabled 11812 | -5/Hub_04(d) | Network Hub disabled 11825 | -5/Hub_04(d) | Spotted Lightning 11833 | -5/Hub_04(d) | Entered Factory 11833 | -4/Factory | Evolved 2 slots: Utility x2 11855 | -4/Factory | Lost 5 parts (2n3u) 11931 | -4/Factory | Repaired Broken Cld. VTOL Module 11984 | -4/Factory | Incoming investigation squad redirected 12043 | -4/Factory | Fabricated Cld. Nuclear Pulse Thruster? 12083 | -4/Factory | Search patrols dispatched 12197 | -4/Factory | Repaired Cld. VTOL Module? 12250 | -4/Factory | Discovered new exit (range 14) 12252 | -4/Factory | Identified exit to Research 12306 | -4/Factory | Spotted B-86 Titan 12309 | -4/Factory | Loaded intel: 8 recycling unit locations 12330 | -4/Factory | Discovered new exit (range 16) 12333 | -4/Factory | Search patrols dispatched 12341 | -4/Factory | Unchained authorized (6S-H0T) 12351 | -4/Factory | Identified exit to Upper Caves 12374 | -4/Factory | Central database locked down 12414 | -4/Factory | Learned location of 2 exits from Proximity Caves 12414 | -4/Factory | Identified exit to Armory 12457 | -4/Factory | Learned 4 Proximity Caves zone layouts 12465 | -4/Factory | Incoming investigation squad redirected 12471 | -4/Factory | Incoming investigation squad redirected 12492 | -4/Factory | Learned Testing scanalyzer intel 12498 | -4/Factory | Lost 3 parts (1p2u) 12519 | -4/Factory | Learned Armory machine intel 12536 | -4/Factory | Learned Research trap positions 12562 | -4/Factory | Learned Research scanalyzer intel 12583 | -4/Factory | Search patrols dispatched 12598 | -4/Factory | Learned Quarantine security intel 12601 | -4/Factory | Entered Armory 12602 | -4/Armory | Identified exit to Lab 12603 | -4/Armory | Loaded intel: 59 trap records 12604 | -4/Armory | Loaded intel: 93 machine locations 12605 | -4/Armory | Loaded intel: 16 terminal locations 12851 | -4/Armory | Lost 5 parts (1p2n2u) 13163 | -4/Armory | Found Adv. Force Booster 13322 | -4/Armory | Loaded intel: 2 recycling unit locations 13340 | -4/Armory | Incoming investigation squad redirected 13379 | -4/Armory | Found Fusion Bomb Launcher 13423 | -4/Armory | Spotted B-86 Titan 13462 | -4/Armory | Learned location of 1 exit from Armory 13513 | -4/Armory | Learned 4 Upper Caves zone layouts 13554 | -4/Armory | Learned Factory stockpile data 13587 | -4/Armory | Learned location of 1 exit from Quarantine 13610 | -4/Armory | Learned Testing security intel 13622 | -4/Armory | Learned location of 1 exit from Armory 13643 | -4/Armory | Learned 12 Factory zone layouts 13675 | -4/Armory | Learned location of 2 exits from Upper Caves 13683 | -4/Armory | Core integrity fell below 50% 13708 | -4/Armory | Destroyed 7 combat bots 13711 | -4/Armory | Found Fusion Bomb Launcher 13715 | -4/Armory | Learned Factory emergency access door positions 13719 | -4/Armory | Lost 3 parts (1n2u) 13812 | -4/Armory | Assisted by bots powering up and referring to "LRC-V3" 13813 | -4/Armory | Lost 4 parts (1p2u1w) 13851 | -4/Armory | Search patrols dispatched 13853 | -4/Armory | Fabricated Huge Storage Unit (x1) 13881 | -4/Armory | Found Adv. Powered Armor 13883 | -4/Armory | Found Adv. Powered Armor 13886 | -4/Armory | Found Adv. Powered Armor 13888 | -4/Armory | Found Adv. Powered Armor 13925 | -4/Armory | Lost 8 allies 13935 | -4/Armory | Core integrity fell below 20% 14011 | -4/Armory | Incoming investigation squad redirected 14017 | -4/Armory | Entered Lab 14082 | -4/Lab | Discovered exit to Research (range 9) 14113 | -4/Lab | Hidden lab's door opened automatically 14113 | -4/Lab | Sensor layout match revealed 14114 | -4/Lab | Gained access to the hidden lab's interior 14148 | -4/Lab | Found Alien Artifact 14153 | -4/Lab | Found Alien Artifact 14154 | -4/Lab | Identified Integrated Mediator 14154 | -4/Lab | Installed Integrated Mediator, increased core attachment efficiency 14159 | -4/Lab | Found Alien Artifact 14165 | -4/Lab | Found Alien Artifact 14195 | -4/Lab | Found Quantum Router 14196 | -4/Lab | Found Med. Regenerative Plating 14198 | -4/Lab | Found Prototype Energy Gun 14198 | -4/Lab | Identified Hyp. EM Gauss Rifle 14200 | -4/Lab | Found Prototype Energy Cannon 14200 | -4/Lab | Identified Warp Cannon 14205 | -4/Lab | Unable to decrypt terminal 14318 | -4/Lab | Entered Research 14318 | -3/Research | Evolved 2 slots: Power x1, Propulsion x1 14319 | -3/Research | Identified exit to Research 14320 | -3/Research | Loaded intel: 74 trap records 14323 | -3/Research | Loaded intel: 5 scanalyzer locations 14332 | -3/Research | Loaded intel: 5 recycling unit locations 14349 | -3/Research | Forged Quantum Companion 14350 | -3/Research | Found Prototype Processor 14352 | -3/Research | Identified Exp. Terrain Scan Processor 14518 | -3/Research | Revision forces began assault on 0b10 14531 | -3/Research | Spotted B-86 Titan 14536 | -3/Research | Identified exit to Quarantine 14590 | -3/Research | Identified Core Regenerator 14678 | -3/Research | Found Prototype Processor 14693 | -3/Research | Identified Exp. Melee Analysis Suite 14767 | -3/Research | Met up with Revision 17++ 14856 | -3/Research | Repaired Cmb. Linear Gravjet+ 14882 | -3/Research | Repaired Cmb. Linear Gravjet+? 15018 | -3/Research | Research terminal network offline 15154 | -3/Research | Build established: Hacker-Gladiator 15561 | -3/Research | Entered Quarantine 15662 | -3/Quarantine | Identified Transdimensional Reconstructor 15662 | -3/Quarantine | Identified Core Reset Matrix 15669 | -3/Quarantine | Found Fusion Bomb Launcher 15690 | -3/Quarantine | Found Alien Reactor 15762 | -3/Quarantine | Scanned by Researcher 15776 | -3/Quarantine | Warped through subspace 15800 | -3/Quarantine | Learned location of 1 exit from Armory 15823 | -3/Quarantine | Learned location of 1 exit from Section 7 15838 | -3/Quarantine | Loaded intel: 11 trap records 15841 | -3/Quarantine | Learned Testing emergency access door positions 15877 | -3/Quarantine | Learned Research emergency access door positions 15981 | -3/Quarantine | Identified Matter Drive 16036 | -3/Quarantine | Found Alien Artifact 16038 | -3/Quarantine | Identified Phase Armor 16069 | -3/Quarantine | Found Alien Artifact 16071 | -3/Quarantine | Identified Subatomic Replicator 16071 | -3/Quarantine | Forged Prototype Slashing Weapon 16087 | -3/Quarantine | Found Alien Artifact 16133 | -3/Quarantine | Found Exp. Signal Interpreter 16255 | -3/Quarantine | Build established: Scientist-Mutant 16308 | -3/Quarantine | Entered Research 16308 | -2/Research | Evolved 2 slots: Propulsion x1, Utility x1 16309 | -2/Research | Identified exit to Testing 16310 | -2/Research | Loaded intel: 86 trap records 16355 | -2/Research | Fabricated Weapon Mount (x2) 16454 | -2/Research | Loaded intel: 4 recycling unit locations 16469 | -2/Research | Discovered new exit (range 13) 16469 | -2/Research | Identified exit to Access 16595 | -2/Research | Garrison activated, responded to threat 16613 | -2/Research | Entered Testing 16615 | -2/Testing | Loaded intel: 3 scanalyzer locations 16630 | -2/Testing | Destroyed 10 combat bots 16689 | -2/Testing | Found Prototype Processor 16696 | -2/Testing | Identified Exp. Core Analyzer 16781 | -2/Testing | Found Prototype Device 16793 | -2/Testing | Identified Thermal Barrier 17040 | -2/Testing | Found Prototype Protection 17040 | -2/Testing | Identified SHELL Armor 17113 | -2/Testing | First assault squad dispatched 17136 | -2/Testing | Spotted Fortress 17171 | -2/Testing | Discovered new exit (range 6) 17171 | -2/Testing | Discovered new exit (range 6) 17174 | -2/Testing | Identified exit to Protoforge 17225 | -2/Testing | Unchained authorized (CL-0N3) 17400 | -2/Testing | Entered Protoforge 17404 | -2/Protoforge | Identified Terrabomb 17436 | -2/Protoforge | Spotted Hotshot 17440 | -2/Protoforge | Spotted Hotshot 17440 | -2/Protoforge | Destroyed Hotshot 17449 | -2/Protoforge | Destroyed Hotshot 17518 | -2/Protoforge | Superfortress began startup sequence 17630 | -2/Protoforge | Spotted Hotshot 17644 | -2/Protoforge | Found Prototype Device 17645 | -2/Protoforge | Identified Cep. Weapon Articulator 17647 | -2/Protoforge | Found Cep. Weapon Articulator 17649 | -2/Protoforge | Found Cep. Weapon Articulator 17662 | -2/Protoforge | Found Prototype Device 17679 | -2/Protoforge | Destroyed Hotshot 17683 | -2/Protoforge | Spotted Hotshot 17684 | -2/Protoforge | Destroyed Hotshot 17690 | -2/Protoforge | Identified Cep. Antimissile System 17718 | -2/Protoforge | Used Terrabomb 17718 | -2/Protoforge | Additional patrols dispatched to research labs 17724 | -2/Protoforge | Crushed by falling debris 17734 | -2/Protoforge | Found Prototype Device 17753 | -2/Protoforge | Spotted Decapitator 17753 | -2/Protoforge | Spotted Decapitator 17754 | -2/Protoforge | Garrison activated, responded to threat 17756 | -2/Protoforge | Destroyed Decapitator 17756 | -2/Protoforge | Destroyed Decapitator 17763 | -2/Protoforge | Spotted V180-z 17771 | -2/Protoforge | Identified Crosscalibrator 17772 | -2/Protoforge | Spotted Immortal 17783 | -2/Protoforge | Spotted Immortal 17784 | -2/Protoforge | Spotted Immortal 17785 | -2/Protoforge | Spotted Decapitator 17785 | -2/Protoforge | Spotted Decapitator 17785 | -2/Protoforge | Spotted Decapitator 17785 | -2/Protoforge | Spotted Decapitator 17809 | -2/Protoforge | Destroyed Immortal 17812 | -2/Protoforge | Destroyed Decapitator 17821 | -2/Protoforge | Found Prototype Device 17821 | -2/Protoforge | Identified Exp. Cloaking Device 17826 | -2/Protoforge | Found Exp. Melee Analysis Suite 17830 | -2/Protoforge | Destroyed V180-z 17832 | -2/Protoforge | Core integrity fell below 50% 17844 | -2/Protoforge | Destroyed Immortal 17846 | -2/Protoforge | Used Core Regenerator, restored core integrity (+362) 17853 | -2/Protoforge | Found Exp. EM Shield 17871 | -2/Protoforge | Lost 5 parts (2p3u) 17875 | -2/Protoforge | Found Prototype Processor 17875 | -2/Protoforge | Identified Exp. Armor Integrity Analyzer 17878 | -2/Protoforge | Found Cep. Melee Reflex Suite 17881 | -2/Protoforge | Found Prototype Device 17881 | -2/Protoforge | Identified Exp. Actuator Array 17905 | -2/Protoforge | Found Exp. Active Sensor Suite 17917 | -2/Protoforge | Destroyed Decapitator 17921 | -2/Protoforge | Destroyed Decapitator 17926 | -2/Protoforge | Destroyed Decapitator 17958 | -2/Protoforge | Spotted V691-z 17959 | -2/Protoforge | Build established: Mutant 17959 | -2/Protoforge | Destroyed V691-z 17961 | -2/Protoforge | Found Prototype Device 17961 | -2/Protoforge | Identified Exp. Weapon Cycler 17993 | -2/Protoforge | Forge Plexus network access discovered 18022 | -2/Protoforge | Incoming assault squad redirected 18063 | -2/Protoforge | Spotted Immortal 18076 | -2/Protoforge | Destroyed Immortal 18082 | -2/Protoforge | Spotted Immortal 18082 | -2/Protoforge | Spotted Immortal 18099 | -2/Protoforge | Destroyed Immortal 18101 | -2/Protoforge | Destroyed Immortal 18103 | -2/Protoforge | Found Exp. Cloaking Device 18130 | -2/Protoforge | Found Cep. Core Shell 18150 | -2/Protoforge | First assault squad dispatched 18188 | -2/Protoforge | Spotted Decapitator 18190 | -2/Protoforge | Spotted Decapitator 18192 | -2/Protoforge | Destroyed Decapitator 18195 | -2/Protoforge | Destroyed Decapitator 18219 | -2/Protoforge | Spotted Immortal 18221 | -2/Protoforge | Spotted V479-d 18223 | -2/Protoforge | Spotted V836-l 18227 | -2/Protoforge | Destroyed V836-l 18230 | -2/Protoforge | Found Cep. Antigrav Storage Unit 18232 | -2/Protoforge | Found Cep. Matter Streamer 18256 | -2/Protoforge | Destroyed Immortal 18260 | -2/Protoforge | Found Exp. Cloaking Device 18262 | -2/Protoforge | Found Exp. Melee Analysis Suite 18268 | -2/Protoforge | Found Cep. NT7 Matterbank 18271 | -2/Protoforge | Found Cep. Chromion Battery 18273 | -2/Protoforge | Spotted V110-z 18275 | -2/Protoforge | Found Cep. NT7 Matterbank 18277 | -2/Protoforge | Found Cep. Antimissile System 18315 | -2/Protoforge | Found Cep. Deflector Sword 18317 | -2/Protoforge | Found Faulty Cep. Helical Railcannon 18325 | -2/Protoforge | Found Cep. Helical Railcannon 18334 | -2/Protoforge | Found Faulty Cep. Plasma Driver 18344 | -2/Protoforge | Found Cep. Plasma Driver 18401 | -2/Protoforge | System corruption reached 10% 18416 | -2/Protoforge | Incoming assault squad redirected 18428 | -2/Protoforge | Spotted AP7-3 18442 | -2/Protoforge | Spotted AP7-3 18444 | -2/Protoforge | Destroyed AP7-3 18464 | -2/Protoforge | Found Prototype Processor 18464 | -2/Protoforge | Identified Exp. Target Analyzer 18469 | -2/Protoforge | Destroyed AP7-3 18470 | -2/Protoforge | Found Prototype Device 18470 | -2/Protoforge | Identified Exp. ECM Suite 18500 | -2/Protoforge | Lost 3 parts (3u) 18516 | -2/Protoforge | Found Faulty Cep. Impact Drone Bay 18517 | -2/Protoforge | Found Faulty Cep. Cloak Mesh 18522 | -2/Protoforge | Found Faulty Cep. Cloak Mesh 18525 | -2/Protoforge | Found Faulty Cep. Impact Drone Bay 18528 | -2/Protoforge | Found Faulty Cep. Cloak Mesh 18659 | -2/Protoforge | Incoming assault squad redirected 18699 | -2/Protoforge | Found Transdimensional Reconstructor 18705 | -2/Protoforge | Found Cep. Navigation Harness 18711 | -2/Protoforge | Destroyed 8 combat bots 18794 | -2/Protoforge | Spotted Decapitator 18794 | -2/Protoforge | Spotted Decapitator 18794 | -2/Protoforge | Spotted Decapitator 18847 | -2/Protoforge | Destroyed Decapitator 18847 | -2/Protoforge | Destroyed Decapitator 18854 | -2/Protoforge | Destroyed Decapitator 18865 | -2/Protoforge | Found Faulty Exp. Force Field 18875 | -2/Protoforge | Destroyed 11 combat bots 18875 | -2/Protoforge | Found Cep. Combat Aerolev Unit 18878 | -2/Protoforge | Found Cep. Combat Aerolev Unit 18880 | -2/Protoforge | Found Cep. Core Shell 18888 | -2/Protoforge | Found Cep. Core Shell 18893 | -2/Protoforge | Found Cep. Projectile Intercept Suite 18903 | -2/Protoforge | Found Exp. Force Field 18905 | -2/Protoforge | Found Cep. Phase Shift Module 18910 | -2/Protoforge | Found Cep. Phase Shift Module 19010 | -2/Protoforge | Found Faulty Cep. Combat Aerolev Unit 19012 | -2/Protoforge | Found Cep. Combat Aerolev Unit 19123 | -2/Protoforge | Spotted EXE-6 19123 | -2/Protoforge | Spotted EXE-6 19139 | -2/Protoforge | Destroyed EXE-6 19156 | -2/Protoforge | Destroyed EXE-6 19159 | -2/Protoforge | Found Exp. Core Analyzer 19164 | -2/Protoforge | Found Exp. Armor Integrity Analyzer 19167 | -2/Protoforge | Found Exp. Core Analyzer 19169 | -2/Protoforge | Found Exp. Armor Integrity Analyzer 19172 | -2/Protoforge | Incoming assault squad redirected 19180 | -2/Protoforge | Incoming assault squad redirected 19224 | -2/Protoforge | Found Cep. NT7 Matterbank 19276 | -2/Protoforge | Incoming assault squad redirected 19294 | -2/Protoforge | Build established: Scavenger-Sprinter 19410 | -2/Protoforge | Spotted Striker 19425 | -2/Protoforge | Allies destroyed Striker 19427 | -2/Protoforge | Spotted Decapitator 19437 | -2/Protoforge | Allies destroyed Decapitator 19462 | -2/Protoforge | Spotted Decapitator 19490 | -2/Protoforge | Spotted Overlord 19503 | -2/Protoforge | Spotted Executioner 19509 | -2/Protoforge | Spotted Decapitator 19516 | -2/Protoforge | UFD initiated attack on Protoforge (Readiness: Maximal) 19516 | -2/Protoforge | Loaded intel: 3 recycling unit locations 19528 | -2/Protoforge | Destroyed Executioner 19528 | -2/Protoforge | Spotted Hotshot 19531 | -2/Protoforge | Spotted Immortal 19551 | -2/Protoforge | Spotted Immortal 19552 | -2/Protoforge | Optimus attacked Superfortress 19552 | -2/Protoforge | Optimus greeted in Protoforge 19556 | -2/Protoforge | Spotted Hotshot 19556 | -2/Protoforge | Found Prototype Device 19557 | -2/Protoforge | Found Centrium Heavy Armor Plating 19558 | -2/Protoforge | Spotted Hotshot 19558 | -2/Protoforge | Identified Adv. Kinecellerator 19564 | -2/Protoforge | Spotted Hotshot 19564 | -2/Protoforge | Destroyed Superfortress 19568 | -2/Protoforge | Found Prototype Launcher 19569 | -2/Protoforge | Identified Cep. Arcsight Missile Launcher 19575 | -2/Protoforge | Found Cep. Zero-point Core 19579 | -2/Protoforge | Found Exp. Force Field 19580 | -2/Protoforge | Found Cep. NT7 Matterbank 19584 | -2/Protoforge | Found Exp. Weapon Cycler 19590 | -2/Protoforge | Found Prototype Device 19590 | -2/Protoforge | Identified Exp. Remote Shield 19595 | -2/Protoforge | Lost 19 allies 19648 | -2/Protoforge | Spotted EXE-6 19655 | -2/Protoforge | Destroyed EXE-6 19659 | -2/Protoforge | Destroyed EXE-6 19668 | -2/Protoforge | Found 0bPrime Scrap Suit 19719 | -2/Protoforge | Lost 11 allies 19725 | -2/Protoforge | Destroyed AP7-3 19780 | -2/Protoforge | Found Cep. NT7 Matterbank 19825 | -2/Protoforge | Destroyed 10 combat bots 19836 | -2/Protoforge | Spotted V616-j 19837 | -2/Protoforge | Spotted V732-v 19842 | -2/Protoforge | Found Cep. Rapid Grenade Launcher 19845 | -2/Protoforge | Found Faulty Cep. Rapid Grenade Launcher 19849 | -2/Protoforge | Found Faulty Cep. Rapid Grenade Launcher 19880 | -2/Protoforge | Found Cep. Core Shell 19935 | -2/Protoforge | System corruption reached 30% 19974 | -2/Protoforge | Spotted V928-q 19974 | -2/Protoforge | Spotted V834-t 19974 | -2/Protoforge | Spotted V453-u 19979 | -2/Protoforge | Found Cep. Zero-point Core 20077 | -2/Protoforge | Found Cep. Gyrokinetic System 20080 | -2/Protoforge | Found Cep. Gyrokinetic System 20092 | -2/Protoforge | Found Cep. Gyrokinetic System 20135 | -2/Protoforge | Found Cep. Chromion Battery 20138 | -2/Protoforge | Spotted Executioner 20145 | -2/Protoforge | Destroyed Executioner 20147 | -2/Protoforge | Destroyed Executioner 20167 | -2/Protoforge | Found Cep. NT7 Matterbank 20172 | -2/Protoforge | Destroyed 12 combat bots 20196 | -2/Protoforge | Spotted Striker 20197 | -2/Protoforge | Spotted Executioner 20253 | -2/Protoforge | Lost 5 allies 20254 | -2/Protoforge | Destroyed Executioner 20283 | -2/Protoforge | Destroyed 7 combat bots 20287 | -2/Protoforge | Spotted Executioner 20296 | -2/Protoforge | UFD reported confirmed Drillbomb installation 20303 | -2/Protoforge | Destroyed Executioner 20306 | -2/Protoforge | Destroyed Executioner 20329 | -2/Protoforge | Destroyed 7 combat bots 20329 | -2/Protoforge | Spotted Striker 20329 | -2/Protoforge | Spotted Striker 20357 | -2/Protoforge | Spotted Hotshot 20370 | -2/Protoforge | Spotted Striker 20383 | -2/Protoforge | Destroyed Striker 20390 | -2/Protoforge | Lost 4 allies 20406 | -2/Protoforge | Spotted Striker 20433 | -2/Protoforge | Spotted Striker 20433 | -2/Protoforge | Spotted Executioner 20440 | -2/Protoforge | Destroyed Hotshot 20441 | -2/Protoforge | Destroyed Executioner 20445 | -2/Protoforge | Destroyed Striker 20445 | -2/Protoforge | Destroyed Hotshot 20469 | -2/Protoforge | Lost 3 allies 20476 | -2/Protoforge | Installed UFD Drillbomb at designated target 20476 | -2/Protoforge | UFD reported confirmed Drillbomb installation 20488 | -2/Protoforge | Destroyed 22 combat bots 20488 | -2/Protoforge | Destroyed Executioner 20507 | -2/Protoforge | Spotted Striker 20542 | -2/Protoforge | Spotted Executioner 20542 | -2/Protoforge | Spotted Executioner 20557 | -2/Protoforge | Spotted Executioner 20559 | -2/Protoforge | Spotted Executioner 20569 | -2/Protoforge | Destroyed Executioner 20569 | -2/Protoforge | Destroyed Executioner 20572 | -2/Protoforge | Destroyed Executioner 20582 | -2/Protoforge | Destroyed Executioner 20586 | -2/Protoforge | Spotted Striker 20589 | -2/Protoforge | Destroyed Striker 20591 | -2/Protoforge | Spotted Striker 20592 | -2/Protoforge | Destroyed Striker 20608 | -2/Protoforge | UFD reported confirmed Drillbomb installation 20613 | -2/Protoforge | Destroyed 14 combat bots 20615 | -2/Protoforge | Spotted B-90 Cyclops 20681 | -2/Protoforge | Spotted Striker 20683 | -2/Protoforge | Spotted Striker 20692 | -2/Protoforge | Destroyed Striker 20693 | -2/Protoforge | Destroyed Striker 20708 | -2/Protoforge | Destroyed Executioner 20714 | -2/Protoforge | Spotted Executioner 20729 | -2/Protoforge | Discovered exit to Access (range 13) 20737 | -2/Protoforge | Destroyed 17 combat bots 20742 | -2/Protoforge | UFD reported confirmed Drillbomb installation 20747 | -2/Protoforge | Spotted Striker 20747 | -2/Protoforge | Spotted Executioner 20755 | -2/Protoforge | Destroyed Striker 20758 | -2/Protoforge | Crushed by falling debris 20768 | -2/Protoforge | Destroyed Executioner 20771 | -2/Protoforge | Destroyed Executioner 20774 | -2/Protoforge | Destroyed Striker 20777 | -2/Protoforge | Destroyed Striker 20798 | -2/Protoforge | Destroyed 18 combat bots 20807 | -2/Protoforge | Spotted Executioner 20858 | -2/Protoforge | Found UFD Drillbomb 20878 | -2/Protoforge | Spotted Striker 20878 | -2/Protoforge | Spotted Striker 20879 | -2/Protoforge | Spotted Executioner 20879 | -2/Protoforge | Spotted Striker 20897 | -2/Protoforge | Installed UFD Drillbomb at designated target 20897 | -2/Protoforge | UFD reported confirmed Drillbomb installation 20947 | -2/Protoforge | Found UFD Drillbomb 20957 | -2/Protoforge | Lost 3 allies 20961 | -2/Protoforge | Destroyed Executioner 20981 | -2/Protoforge | Spotted Striker 20983 | -2/Protoforge | Spotted Striker 20990 | -2/Protoforge | Destroyed Striker 21010 | -2/Protoforge | Spotted Striker 21010 | -2/Protoforge | Spotted Executioner 21023 | -2/Protoforge | Destroyed Executioner 21044 | -2/Protoforge | Destroyed 18 combat bots 21045 | -2/Protoforge | Installed UFD Drillbomb at designated target 21045 | -2/Protoforge | UFD reported confirmed Drillbomb installation 21075 | -2/Protoforge | Found UFD Drillbomb 21095 | -2/Protoforge | Spotted Striker 21106 | -2/Protoforge | Destroyed Striker 21123 | -2/Protoforge | Installed UFD Drillbomb at designated target 21123 | -2/Protoforge | UFD reported confirmed Drillbomb installation 21133 | -2/Protoforge | Destroyed Executioner 21136 | -2/Protoforge | Spotted Striker 21139 | -2/Protoforge | Spotted Executioner 21145 | -2/Protoforge | Destroyed Executioner 21156 | -2/Protoforge | Found UFD Drillbomb 21166 | -2/Protoforge | Destroyed 10 combat bots 21189 | -2/Protoforge | Spotted Executioner 21190 | -2/Protoforge | Spotted Executioner 21194 | -2/Protoforge | Spotted Striker 21195 | -2/Protoforge | Installed UFD Drillbomb at designated target 21195 | -2/Protoforge | UFD reported confirmed Drillbomb installation 21196 | -2/Protoforge | UFD reported confirmed Drillbomb installation 21205 | -2/Protoforge | Destroyed Executioner 21205 | -2/Protoforge | Destroyed Executioner 21205 | -2/Protoforge | Destroyed Executioner 21226 | -2/Protoforge | Destroyed 11 combat bots 21258 | -2/Protoforge | Found Cep. NT7 Matterbank 21263 | -2/Protoforge | Destroyed Striker 21265 | -2/Protoforge | Spotted Striker 21270 | -2/Protoforge | Destroyed Striker 21271 | -2/Protoforge | Core integrity fell below 20% 21295 | -2/Protoforge | Found Cep. Chromion Battery 21303 | -2/Protoforge | Found Cep. Weapon Articulator 21312 | -2/Protoforge | Destroyed 7 combat bots 21327 | -2/Protoforge | UFD reported confirmed Drillbomb installation 21328 | -2/Protoforge | UFD began Drillbomb countdown 21328 | -2/Protoforge | Spotted Striker 21331 | -2/Protoforge | Spotted Executioner 21348 | -2/Protoforge | Entered Access 21348 | -1/Access | Evolved 2 slots: Utility x2 21444 | -1/Access | High security lockdown imminent 21524 | -1/Access | High security lockdown engaged 21642 | -1/Access | Discovered new exit (range 7) 21703 | -1/Access | Entered Command 21905 | -1/Command | Destroyed 10 combat bots 21914 | -1/Command | Spotted B-99 Colossus 21926 | -1/Command | Destroyed B-99 Colossus 21948 | -1/Command | Spotted M Guard 21948 | -1/Command | Spotted M Guard 21948 | -1/Command | Spotted Combat Programmer 21953 | -1/Command | First assault squad dispatched 21953 | -1/Command | Spotted Combat Programmer 21981 | -1/Command | Destroyed Combat Programmer 21996 | -1/Command | Destroyed Combat Programmer 22063 | -1/Command | Met MAIN.C 22063 | -1/Command | 0b10 Conduit disabled 22098 | -1/Command | Destroyed MAIN.C Shell 22099 | -1/Command | MAIN.C activated Command garrisons 22177 | -1/Command | Spotted Executioner 22181 | -1/Command | Lost 6 allies 22187 | -1/Command | Lost 13 parts (1p7n4u1w) 22418 | -1/Command | Build established: Mutant 23024 | -1/Command | Discovered new exit (range 9) 23133 | -1/Command | Found Prototype Reactor 23133 | -1/Command | Identified Zero-point Reactor 23136 | -1/Command | Found Zero-point Reactor 23140 | -1/Command | Found Prototype Device 23145 | -1/Command | Identified Exp. System Purifier 23211 | -1/Command | Found Prototype Energy Cannon 23227 | -1/Command | Identified Cld. Nova Cannon 23463 | -1/Command | Found Exp. Core Analyzer 23466 | -1/Command | Found Exp. Core Analyzer 23495 | -1/Command | Found Exp. Core Analyzer 23794 | -1/Command | Build established: Scavenger-Mutant 23814 | -1/Command | Found Prototype Ballistic Gun 23823 | -1/Command | Identified Multirail 24556 | -1/Command | Build established: Scavenger-Sprinter 24869 | -1/Command | Build established: Scavenger-Mutant 25222 | -1/Command | Found Exp. Phase Shifter 25571 | -1/Command | Found Exp. Core Analyzer 25745 | -1/Command | Found Exp. Armor Integrity Analyzer 26088 | -1/Command | All MAIN.C guards destroyed 26138 | -1/Command | Warped through subspace to slip node 26138 | -1/Command | Discovered new exit (range 5) 26142 | -1/Command | Entered Access_0 26143 | -1/Access_0 | Met Architect 26160 | -1/Access_0 | Build established: Scavenger-Sprinter 26199 | -1/Access_0 | A6 warped into view 26217 | -1/Access_0 | Subspace Access Node disabled 26249 | -1/Access_0 | Subspace Access Node disabled 26256 | -1/Access_0 | A5 warped into view 26270 | -1/Access_0 | Destroyed A5 26335 | -1/Access_0 | Subspace Access Node disabled 26351 | -1/Access_0 | A4 warped into view 26410 | -1/Access_0 | Subspace Access Node disabled 26420 | -1/Access_0 | Core integrity fell below 50% 26443 | -1/Access_0 | Destroyed Architect 26444 | -1/Access_0 | Architect triggered a singularity event 26444 | -1/Access_0 | Found Alien Artifact 26446 | -1/Access_0 | Extracted unknown sensor trigger ID from Architect's data core 26446 | -1/Access_0 | Identified Hpw. Transdimensional Reconstructor 26446 | -1/Access_0 | Warped through subspace to slip node 26446 | -1/Access_0 | Discovered new exit (range 8) 26448 | *** | Escaped singularity! Last Messages --------------- A6. 26444_ A0_COM: Initiating irreversible singularity event. Goodbye. 26444_ A6 follow-up attacks with Enh. Force Lance. 26444_ Slug penetrates Wall. 26444_ Acquired Alien Artifact. 26445_ A0_COM: 10. 26445_ Acquired 100 matter. 26446_ A0_COM: 9. 26446_ Acquired data core, extracted unknown sensor trigger ID. 26446_ Identified Hpw. Transdimensional Reconstructor. 26446_ Warped through subspace, drawn to slip node. 26446_ EXIT=FOUND 26447_ A0_COM: 8. 26448_ A0_COM: 7. [Achievement: Unfinished Business] Map ----- +----------------------------------------------------+ | | | | | | | | | | | | | | | | | | | | | | | | | | | | | | | | | ?????????????????????????????????????????????????? | | ?????????????????????????????????????????????????? | | ?????????????????????????????????????????????????? | | ?????????????????????????????????????????????????? | | ?????????????????????????????????????????????????? | | ?????????????????????????????????????????????????? | | ????????????????????????###??????????????????????? | | ???????????????????????## ##?????????????????????? | | ???????????????????????# #?????????????????????? | | ???????????????????????# @ #?????????????????????? | | ??????????????????????## #?????????????????????? | | ??????????????????????# #?????????????????????? | | ??????????????????????# ##?????????????????????? | | ??????????????????????## #?????????????????????? | | ??????????????????????# #?????????????????????? | | ??????????????????????# ##?????????????????????? | | ??????????????????????# < #?????????????????????? | | ??????????????????????# ##?????????????????????? | | ??????????????????????## #??????????????????????? | | ???????????????????????####??????????????????????? | | ?????????????????????????????????????????????????? | | ?????????????????????????????????????????????????? | | ?????????????????????????????????????????????????? | | ?????????????????????????????????????????????????? | | ?????????????????????????????????????????????????? | | ?????????????????????????????????????????????????? | | ?????????????????????????????????????????????????? | | ?????????????????????????????????????????????????? | | ?????????????????????????????????????????????????? | | ?????????????????????????????????????????????????? | | ?????????????????????????????????????????????????? | | ?????????????????????????????????????????????????? | | ?????????????????????????????????????????????????? | | ?????????????????????????????????????????????????? | +----------------------------------------------------+ Best States ------------- Heat Dissipation 121 Coolant Potential 100 Energy Generation 86 Energy Capacity 2050 Matter Stores 300 Matter Capacity 300 Sight Range 23 Robot Scan Range 18 Terrain Scan Range 20 Terrain Scan Density 10 Jamming Range 16 Cloak Strength 6 Power Amplification 70 Additional Mass Support 12 EM Shielding 4 Armor Coverage 1125 Resistance: KI 30 Resistance: EM 75 Core Shielding 90 Propulsion Shielding 90 Utility Shielding 66 Weapon Shielding 90 Point Defense Rating 480 Projectile Deflection 15 Weapon Cycling 30 Melee Speed Boost 40 Phase Shifting 25 Evasion (%) 99 Targeting Accuracy 30 Melee Accuracy 30 Core Analysis 12 Armor Integrity Analysis 50 Recoil Reduction 2 Kinecelleration 50 Offensive Hacking 26 Defensive Hacking 25 Authchip Count 4 Item Schematics ----------------- Huge Storage Unit | -10/Materials | Hacked Thermic Laser | -6/Factory | Extracted System Shield | -6/Factory | Extracted Imp. Shield Generator | -6/Factory | Extracted Flail | -6/Factory | Extracted Arm. Wheel | -6/Factory | Extracted Exp. Signal Interpreter | -6/Factory | Scanalyzed Combat Drone Bay | -6/Data Miner | Free Lgt. Regenerative Plating | -6/Data Miner | Free Enh. Armored Leg | -6/Data Miner | Free Adv. EM Disruption Field | -6/Data Miner | Free Cld. Plasma Rifle | -6/Data Miner | Free Impulse Thruster | -6/Data Miner | Free Adv. Coolant Injector | -6/Data Miner | Free Hardcell Cannon | -6/Data Miner | Free Antigrav System | -6/Data Miner | Free Adv. VSS Leg | -6/Data Miner | Free Weapon Mount | -4/Factory | Hacked Cld. Nuclear Pulse Thruster | -4/Factory | Hacked Nanoactuators | -4/Factory | Hacked Exp. Propulsion Shielding | -4/Factory | Hacked Adv. Melee Analysis Suite | -4/Factory | Scanalyzed Imp. Powered Armor | -4/Armory | Hacked Exp. Melee Analysis Suite | -3/Quarantine | Scanalyzed Adv. Powered Armor | -3/Quarantine | Scanalyzed Shock Maul | -2/Protoforge | Archive Mni. Smartbomb Launcher | -2/Protoforge | Archive Exp. Optical Array | -2/Protoforge | Archive Proton Burst Cannon | -2/Protoforge | Archive Enh. Biometal Leg | -2/Protoforge | Archive Exp. Power Amplifier | -2/Protoforge | Archive Hds. Centrium Leg | -2/Protoforge | Archive Cld. Q-thruster | -2/Protoforge | Archive Enh. Coil Gun | -2/Protoforge | Archive Electron Diverter | -2/Protoforge | Archive Robot Schematics ------------------ M-13 Machinist | -10/Materials | Hacked G-50 Soldier | -6/Data Miner | Free A-15 Conveyor | -6/Data Miner | Free Y-54 Guardian | -6/Data Miner | Free Y-64 Sentinel | -6/Data Miner | Free L-61 Swordsman | -6/Data Miner | Free R-10 Processor | -6/Data Miner | Free E-15 Imp | -6/Data Miner | Free W-44 Eye | -3/Quarantine | Archive T-07 Excavator | -2/Protoforge | Archive R-06 Scavenger | -2/Protoforge | Archive G-67 Veteran | -2/Protoforge | Archive K-01 Serf | -2/Protoforge | Archive C-55 Analyst | -2/Protoforge | Archive Fabricated ------------ Cld. Nuclear Pulse Thruster | x1 | -4/Factory Huge Storage Unit | x1 | -4/Armory | Authchip Weapon Mount | x2 | -2/Research | Authchip Repaired ---------- Adv. Powered Armor | 17% | -6/Factory Cld. VTOL Module | 3% | -4/Factory | Broken Cld. VTOL Module | 38% | -4/Factory Cmb. Linear Gravjet | 22% | -3/Research Cmb. Linear Gravjet | 36% | -3/Research Studied --------- Xenon Bombardment Thruster | -6/Factory | Hacked Fission Core | -6/Factory | Hacked Mic. Fission Core | -5/Factory | Hacked Cmb. Linear Gravjet | -3/Research | Hacked Lgt. Particle Reactor | -3/Research | Hacked Antimatter Reactor | -3/Research | Hacked Nova Cannon | -3/Quarantine | Hacked Com. HERF Cannon | -3/Quarantine | Hacked Lgt. Quantum Reactor | -2/Protoforge | Hacked Enh. Nova Cannon | -2/Protoforge | Hacked Alien Tech Used ----------------- Integrated Mediator Transdimensional Reconstructor Phase Armor Subatomic Replicator Terrabomb Core Regenerator Matter Drive High-powered Transdimensional Reconstructor Achievements -------------- Ambidextrous Better Safe Than Exploded Civilization 2243 Fancy Inventory Fine I'll Do It Myself Fishing Tech Friends Forever Hulk Smash Link The Feds Loot Taster Martial Artist Official Business Recruitment Drive Suspicious By Nature UFD MVP Unfinished Business We Are One Challenges ------------ None Game ------ Seed SensorCatalystNullifier Manual? 0 Play Time 14:29:35 Cumulative 789.7 hours Start 2025.11.01 @ 00:28:27 End 2025.11.06 @ 01:44:43 Sessions 7 Manual Loads 0 Difficulty Rogue Special Mode None Game No. 176 Rogue 176 Adventurer 0 Explorer 0 Win Type 6 Total 48 Types 13/8/10/2/1/1/9/2/1/1 Lore% 79 Gallery% 86 Achievement% 64 Wizard Run 0 Options --------- Layout 1 ASCII 0 Keyboard 0 Movement Mouse Keybinds 0 Fullscreen 1 Font 24/Smallcaps Map View 50x35 Zoom Use 0% Tactical HUD 1 Map Filters NONE Filters NONE Steam 1 RUN: f2851bd3-7b15-4031-8621-3329741fcd7c